{"text_format":"1","workbook":"xlsx","n_sheets":5,"sheets":["Utility Costs Summary (2017)","Utility Costs Summary (2020)","Sheet1","Asset List","Print View - Asset List"],"not_rendered":{"charts":4,"images":1,"macros":1,"external_links":0,"defined_names":60,"comments":2,"pivot_tables":0},"unopened":[],"bounds":{"document_bytes":16777216,"sheet_cells":100000,"rows_first":2000,"rows_last":500,"rows_between":2000,"halvings":0,"cell_chars":16384,"cell_head_chars":4096},"cells_cut":0,"cells_raw":0,"read":"whole","date_system":"1900"}

{"sheet":"Utility Costs Summary (2017)","index":0,"n_rows":34,"n_cols":13,"rows_kept":34,"cut":false,"hidden":true,"merged":[[0,0,0,11]]}
["TOP Cost Distribution Calculator"]
[null,null,null,null,null,null,"Projected Project Cost is",850,"thousand"]
[]
[null,null,null,"Utility Cost Breakdown",null,null,16,"Peak MW Load is derived from the BPA 2014 FERC-714 Power System Report"]
[null,null,null,null,null,null,null,"Toggle","Utility Customers","Line Segments","Buses","Peak MW Load","Share of TOP Cost"]
[null,null,null,null,null,null,null,false,"Benton County PUD No. 1 ",{"$f":"VLOOKUP(I6,'Asset List'!$B$3:$Q$113,14,0)","v":0},{"$f":"VLOOKUP(I6,'Asset List'!$B$3:$Q$113,16,0)","v":0},429.2,{"$f":"IF(H6,$D$12+$D$19*J6+$D$20*K6+$D$15*L6,0)","v":0}]
[null,null,null,null,null,null,null,false,"Clark Public Utilities",{"$f":"VLOOKUP(I7,'Asset List'!$B$3:$Q$113,14,0)","v":15},{"$f":"VLOOKUP(I7,'Asset List'!$B$3:$Q$113,16,0)","v":11},1033,0]
[null,null,null,null,null,null,null,true,"Cowlitz County PUD No. 1",{"$f":"VLOOKUP(I8,'Asset List'!$B$3:$Q$113,14,0)","v":15},{"$f":"VLOOKUP(I8,'Asset List'!$B$3:$Q$113,16,0)","v":26},742.1,239243.92239333197]
[null,null,null,null,null,null," ",false,"Eugene Water and Electric Board",{"$f":"VLOOKUP(I9,'Asset List'!$B$3:$Q$113,14,0)","v":38},{"$f":"VLOOKUP(I9,'Asset List'!$B$3:$Q$113,16,0)","v":32},498,0]
[null,null,null,null,null,null,null,true,"Grays Harbor County PUD No. 1 ",{"$f":"VLOOKUP(I10,'Asset List'!$B$3:$Q$113,14,0)","v":1},{"$f":"VLOOKUP(I10,'Asset List'!$B$3:$Q$113,16,0)","v":2},261.60000000000002,61638.136103383622]
[null,null,null,null,null,null,null,true,"Klickitat County PUD No. 1 ",{"$f":"VLOOKUP(I11,'Asset List'!$B$3:$Q$113,14,0)","v":7},{"$f":"VLOOKUP(I11,'Asset List'!$B$3:$Q$113,16,0)","v":7},77.900000000000006,92430.943219096167]
[null,null,"Utility Base Charge:",30000,{"$f":"CONCATENATE(\"(or \",ROUND((D12*COUNTIF(H6:H20,TRUE))/(H2*1000)*100,0),\"% of  utility cost)\")","v":"(or 35% of  utility cost)"},null,null,true,"Lower Valley Energy",{"$f":"VLOOKUP(I12,'Asset List'!$B$3:$Q$113,14,0)","v":8},{"$f":"VLOOKUP(I12,'Asset List'!$B$3:$Q$113,16,0)","v":5},174,100121.11456159288]
[null,null,null,null,null,null,null,true,"Lewis County PUD No. 1",{"$f":"VLOOKUP(I13,'Asset List'!$B$3:$Q$113,14,0)","v":2},{"$f":"VLOOKUP(I13,'Asset List'!$B$3:$Q$113,16,0)","v":2},232.8,64685.598054529408]
[null,null,"Utility Load Charge:",0.2,"of the total utility cost",null,null,true,"Northern Wasco ",{"$f":"VLOOKUP(I14,'Asset List'!$B$3:$Q$113,14,0)","v":1},{"$f":"VLOOKUP(I14,'Asset List'!$B$3:$Q$113,16,0)","v":1},102.3,46214.480443193897]
[null,null,null,{"$f":"(H2*1000*D14)/(SUMIF(H6:H20,\"TRUE\",L6:L20))","v":80.022594614950123},"per MW",null,null,true,"Okanogan County PUD No. 1",{"$f":"VLOOKUP(I15,'Asset List'!$B$3:$Q$113,14,0)","v":5},{"$f":"VLOOKUP(I15,'Asset List'!$B$3:$Q$113,16,0)","v":3},167,78152.505695062864]
[null,null,null,null,null,null,null,true,"Pend Oreille County PUD No. 1",{"$f":"VLOOKUP(I16,'Asset List'!$B$3:$Q$113,14,0)","v":4},{"$f":"VLOOKUP(I16,'Asset List'!$B$3:$Q$113,16,0)","v":5},116,74071.353369700417]
[null,null,"Line & Bus Charge:",{"$f":"CONCATENATE(\"Remaining \",ROUND(100*((H2*1000)-(D12*COUNTIF(H6:H20,TRUE))-(D14*H2*1000))/(H2*1000),0),\"% of the total utility cost\")","v":"Remaining 45% of the total utility cost"},null,null,null,false,"Snohonomish County PUD",{"$f":"VLOOKUP(I17,'Asset List'!$B$3:$Q$113,14,0)","v":{"$error":"#N/A"}},{"$f":"VLOOKUP(I17,'Asset List'!$B$3:$Q$113,16,0)","v":{"$error":"#N/A"}},1466,0]
[null,null,"Cost per bus section is",0.5,"of the cost per line segment",null,null,false,"Springfield Utility Board ",{"$f":"VLOOKUP(I18,'Asset List'!$B$3:$Q$113,14,0)","v":11},{"$f":"VLOOKUP(I18,'Asset List'!$B$3:$Q$113,16,0)","v":7},179.8,0]
[null,null,null,{"$f":"((H2*1000)-(D12*COUNTIF(H6:H20,TRUE))-(D14*H2*1000))/(SUMIF(H6:H20,TRUE,J6:J20)+D18*SUMIF(H6:H20,TRUE,K6:K20))","v":5352.1126760563384},"per line segment",null,null,true,"Umatilla Electric Cooperative ",{"$f":"VLOOKUP(I19,'Asset List'!$B$3:$Q$113,14,0)","v":1},{"$f":"VLOOKUP(I19,'Asset List'!$B$3:$Q$113,16,0)","v":0},222,53117.128680575261]
[null,null,null,{"$f":"D19*D18","v":2676.0563380281692},"per bus",null,null,true,"Whatcom County PUD No. 1 ",{"$f":"VLOOKUP(I20,'Asset List'!$B$3:$Q$113,14,0)","v":1},{"$f":"VLOOKUP(I20,'Asset List'!$B$3:$Q$113,16,0)","v":1},28.7,40324.817479533573]
[]
[]
[null,null,null,null,null,null,null,null,"View cost breakdown for:","Umatilla Electric Cooperative "]
[]
[]
[]
[]
[null,null,null,null,null,null,null,null,null,null,{"$f":"CONCATENATE(\"Cost Breakdown for \",J23)","v":"Cost Breakdown for Umatilla Electric Cooperative "}]
[null,null,null,null,null,null,null,null,null,"Utility Base",{"$f":"D12","v":30000}]
[null,null,null,null,null,null,null,null,null,"Per Line",{"$f":"(D19*VLOOKUP(J23,I6:M20,2,0))","v":5352.1126760563384}]
[null,null,"Utility Base",{"$f":"D12*COUNTIF(H6:H20,\"TRUE\")/(1000000*H2)","v":3.5294117647058826E-4},null,null,null,null,null,"Per Bus",{"$f":"(D20*VLOOKUP(J23,I6:M20,3,0))","v":0}]
[null,null,"Per Line",{"$f":"D19*SUMIF(H6:H20,\"TRUE\",J6:J20)/(1000000*H2)","v":2.8334714167357086E-4},null,null,null,null,null,"Utility Load",{"$f":"(D15*VLOOKUP(J23,I6:M20,4,0))","v":17765.016004518926}]
[null,null,"Per Bus",{"$f":"D20*SUMIF(H6:H20,\"TRUE\",K6:K20)/(1000000*H2)","v":1.6371168185584092E-4}]
[null,null,"Utility Load",{"$f":"D15*SUMIF(H6:H20,\"TRUE\",L6:L20)/(1000000*H2)","v":2.0000000000000001E-4}]

{"sheet":"Utility Costs Summary (2020)","index":1,"n_rows":36,"n_cols":14,"rows_kept":36,"cut":false,"hidden":false,"merged":[[0,0,0,11],[4,7,4,12]]}
["2022 TP Cost Distribution Calculator"]
[null,null,null,null,null,null,"Projected Resource Cost =",306,"thousand"]
[null,null,null,null,null,null,"Adjustment from the 2021 year =",null,"thousand"]
[null,null,null,null,null,null,"2022 Projected Project Cost =",{"$f":"H2-H3","v":306},"thousand"]
[null,null,null,null,null,null,null," "]
[null,null,null,"Utility Cost Breakdown",null,null,16,"Peak MW Load is derived from the BPA (6/2021) FERC-714 Power System Report"]
[null,null,null,null,null,null,null,"Toggle","Utility Customers","Line Segments","Buses","Peak MW Load","Share of TP Cost"]
[null,null,null,null,null,null,null,true,"Klickitat County PUD No. 1 ",7,7,80,{"$f":"IF(H8,$D$14+$D$21*J8+$D$22*K8+$D$17*L8,0)","v":49512.408985282724}]
[null,null,null,null,null,null,null,true,"Lewis County PUD No. 1",2,2,178,34358.109992254067]
[null,null,null,null,null,null," ",true,"Northern Wasco ",1,1,138,28501.905499612702]
[null,null,null,null,null,null,null,true,"Pend Oreille County PUD No. 1",4,5,133,41464.879938032536]
[null,null,null,null,null,null,null,true,"Umatilla Electric Cooperative ",5,3,576,62465.344694035637]
[null,null,null,null,null,null,null,true,"Whatcom County PUD No. 1 ",1,1,29,23334.748257164989]
[null,null,"Utility Base Charge:",18000,{"$f":"CONCATENATE(\"(or \",ROUND((D14*COUNTIF(H8:H14,TRUE))/(H4*1000)*100,0),\"% of  utility cost)\")","v":"(or 41% of  utility cost)"},null,null,true,"Lower Valley Energy",10,11,157,66362.602633617353," "]
[]
[null,null,"Utility Load Charge:",0.2,"of the total utility cost",null,null,null,"View cost breakdown for:","Klickitat County PUD No. 1 "]
[null,null,null,{"$f":"(H4*1000*D16)/(SUMIF(H8:H14,\"TRUE\",L8:L14))","v":47.405112316034085},"per MW"]
[]
[null,null,"Line & Bus Charge:",{"$f":"CONCATENATE(\"Remaining \",ROUND(100*((H4*1000)-(D14*COUNTIF(H8:H14,TRUE))-(D16*H4*1000))/(H4*1000),0),\"% of the total utility cost\")","v":"Remaining 39% of the total utility cost"}]
[null,null,"Cost per bus section is",0.5,"of the cost per line segment"]
[null,null,null,{"$f":"((H4*1000)-(D14*COUNTIF(H8:H14,TRUE))-(D16*H4*1000))/(SUMIF(H8:H14,TRUE,J8:J14)+D20*SUMIF(H8:H14,TRUE,K8:K14))","v":2640},"per line segment",null,null,null,null,null,{"$f":"CONCATENATE(\"Cost Breakdown for \",J16)","v":"Cost Breakdown for Klickitat County PUD No. 1 "}]
[null,null,null,{"$f":"D21*D20","v":1320},"per bus",null,null,null,null,"Utility Base",{"$f":"D14","v":18000}]
[null,null,null,null,null,null,null,null,null,"Per Line",{"$f":"(D21*VLOOKUP(J16,I8:M14,2,0))","v":18480}]
[null,null,null,null,null,null,null,null,null,"Per Bus",{"$f":"(D22*VLOOKUP(J16,I8:M14,3,0))","v":9240}]
[null,null,null,null,null,null,null,null,null,"Utility Load",{"$f":"(D17*VLOOKUP(J16,I8:M14,4,0))","v":3792.4089852827269}]
[]
[]
[]
[]
[]
[]
[]
[null,null,"Utility Base",{"$f":"D14*COUNTIF(H8:H13,\"TRUE\")/(1000000*H4)","v":3.5294117647058826E-4}]
[null,null,"Per Line",{"$f":"D21*SUMIF(H8:H13,\"TRUE\",J8:J13)/(1000000*H4)","v":1.7254901960784313E-4}]
[null,null,"Per Bus",{"$f":"D22*SUMIF(H8:H13,\"TRUE\",K8:K13)/(1000000*H4)","v":8.1960784313725492E-5}]
[null,null,"Utility Load",{"$f":"D17*SUMIF(H8:H13,\"TRUE\",L8:L13)/(1000000*H4)","v":1.7567776917118514E-4}]

{"sheet":"Sheet1","index":2,"n_rows":14,"n_cols":10,"rows_kept":14,"cut":false,"hidden":true,"merged":[]}
["customer","lines","lines total","bus","bus total","load","load total","Base","Total charge","monthly charge"]
["klick",7,{"$f":"B2*4770","v":33390},7,{"$f":"D2*2385","v":16695},79,{"$f":"F2*60.35","v":4767.6500000000005},18000,{"$f":"C2+E2+G2+H2","v":72852.649999999994},{"$f":"I2/12","v":6071.0541666666659}]
["Lewis",2,{"$f":"B3*4770","v":9540},2,{"$f":"D3*2385","v":4770},223,13458.050000000001,18000,{"$f":"C3+E3+G3+H3","v":45768.05},{"$f":"I3/12","v":3814.0041666666671}]
["N. Wasco",1,4770,1,2385,111,6698.85,18000,31853.85,2654.4874999999997]
["POPUD",4,19080,5,11925,156,9414.6,18000,58419.6,4868.3]
["UEC",3,14310,2,4770,403,{"$f":"F6*60.35","v":24321.05},18000,61401.05,5116.7541666666666]
["Whatcom",1,4770,1,2385,28,{"$f":"F7*60.35","v":1689.8},18000,26844.799999999999,2237.0666666666666]
[null,null,null,null,null,null,null,null,{"$f":"SUM(I2:I7)","v":297140}]
[]
[]
[]
[]
["customer","lines","lines total","bus","bus total","load","load total","Base","Total charge","monthly charge"]
["Okanagon",5,{"$f":"B14*4770","v":23850},3,{"$f":"D14*2385","v":7155},142,{"$f":"F14*60.35","v":8569.7000000000007},18000,{"$f":"C14+E14+G14+H14","v":57574.7},{"$f":"I14/12","v":4797.8916666666664}]

{"sheet":"Asset List","index":3,"n_rows":134,"n_cols":18,"rows_kept":134,"cut":false,"hidden":true,"merged":[]}
[null,"Customer","Contract No.","Registration Status","Path","Line Segment","Buses",null,null,"Breakers","Disconnects","BES (Y/N)","BES Team Comment","Line Segment Count","Line Segment Count","Bus Section Count","Bus Section Count","Customer Perspective"]
["Included in TOP",null,null,null,null," Line Segments","Buses","Reactive device","Disconnect Switches","Transformers","Breakers/CS",null,null,null,null,null,null,"Customer Perspective"]
[1,"Clark Public Utilities","N/A","DP, GO, GOP TO, TOP","1. Ross - Hazel Dell 115 kV","Ross-Hazel Dell 115kV","Hazel Dell 115 kV",null,"?","Y",null,"Y",null,{"$f":"IF(F3=\"\",0,LEN(F3)-LEN(SUBSTITUTE(F3,\",\",\"\"))+1)","v":1},{"$f":"SUMIF(B:B,B3,N:N)","v":15},{"$f":"IF(G3=\"\",0,LEN(G3)-LEN(SUBSTITUTE(G3,\",\",\"\"))+1)","v":1},{"$f":"SUMIF(B:B,B3,P:P)","v":11},"Since they have been their own TOP, they may want to maintain some functional operation consistant with what they do today. This will be determined as we work through the TOP requirement checklist."]
[1,"Clark Public Utilities","N/A","DP, GO, GOP TO, TOP","2. Alcoa - River Road - Fruit Valley Tap 115 kV","Alcoa – River Road 115 kV,\nRiver Road - Fruit Valley Tap 115 kV","River Road 115 kV",null,"?","Y",null,"Y",null,2,15,1,11]
[1,"Clark Public Utilities","N/A","DP, GO, GOP TO, TOP","3. Sifton 2 – Alcoa 115 kV","Sifton 2 – 119th St. 115kV,\n119th St. – Cherry Grove 115kV,\nCherry Grove - Pioneer 115kV,\nPioneer- Alcoa 115 kV","119th St. 115 kV,\nCherry Grove 115 kV,\nPioneer 115 kV",null,null,"Y",null,"Y",null,4,15,3,11]
[1,"Clark Public Utilities","N/A","DP, GO, GOP TO, TOP","4. Sifton 1 - Silicon - Sifton 3 115 kV","Sifton 1 – Silicon 115kV,\nSilicon – Sifton 3 115kV","Silicon 115 kV",null,"?","Y",null,"Y",null,2,15,1,11]
[1,"Clark Public Utilities","N/A","DP, GO, GOP TO, TOP","5.  Sifton 5 – Lacamas - Wafertech - Runyan - Ast -Sifton 4 115 kV","Sifton 5 – Lacamas 115 kV,\nLacamas - Wafertech 115 kV,\nWafertech - Runyan 115 kV,\nRunyan - Joe Ast 115 kV,\nJoe Ast  - Sifton 4 115 kV","Lacamas 115 kV,\nWafertech 115 kV,\nRunyan 115 kV,\nJoe Ast 115 kV",null,"?","Y",null,"Y",null,5,15,4,11]
[1,"Clark Public Utilities","N/A","DP, GO, GOP TO, TOP","6.  Runyan - Troutdale 115 kV","Runyan - Troutdale 115 kV",null,null,"?","Y",null,"Y",null,1,15,0,11]
[1,"Clark Public Utilities","N/A","DP, GO, GOP TO, TOP","7. North Camas 115 kV Substation",null,"North Camas 115 kV",null,"?","Y",null,"Y",null,0,15,1,11]
[1,"Cowlitz County PUD No. 1","17TP-11235","DP, GO,GOP, LSE, TO","Lexington (BPA) - Shawnee (CPUD)","Lexington - Shawnee 115kV","Shawnee 115kV (CPUD)",null,null,"CS-115B1 (CPUD)","115B1-LD (CPUD)","Y",null,1,15,1,26,"No change to daily operations, except what would be required for BPA compliance "]
[1,"Cowlitz County PUD No. 1","17TP-11235","DP, GO,GOP, LSE, TO","Shawnee (CPUD) - East Kelso (CPUD)","Shawnee - East Kelso 115kV","Shawnee 115kV (CPUD),\nEast Kelso 115 kV (CPUD)",null,null,"115B2 (CPUD),\n115K1 (CPUD)","115B2-LD (CPUD),\n115B2-BD (CPUD),\n115k1-LD (CPUD),\n115k1-BD (CPUD)","Y",null,1,15,2,26]
[1,"Cowlitz County PUD No. 1","17TP-11235","DP, GO,GOP, LSE, TO","East Kelso (CPUD) - Soucth Kelso (CPUD)","East Kelso - South Kelso 115kV","East Kelso 115kV (CPUD),\nSouth kelso 115kV (CPUD)",null,null,"115K2 (CPUD),\n115K3 (CPUD)","115K2-LD (CPUD),\n115K2-BD (CPUD),\n115SK3-BD (CPUD)","Y",null,1,15,2,26]
[1,"Cowlitz County PUD No. 1","17TP-11235","DP, GO,GOP, LSE, TO","South Kelso (CPUD) - Carrolls (CPUD)","South Kelso - Cardwell 115kV","South Kelso 115kV (CPUD),\nCarrolls 115kV (CPUD)",null,null,"115SK1 (CPUD),\nCS-115S1 (CPUD)","115SK1-BED-BD (CPUD),\n115S1-LD (CPUD)","Y",null,1,15,2,26]
[1,"Cowlitz County PUD No. 1","17TP-11235","DP, GO,GOP, LSE, TO","Carrolls (CPUD) - Cardwell (BPA)","South Kelso - Cardwell 11 5kV","Carrolls 115kV (CPUD)",null,null,"CS-115S2 (CPUD)","115S2-LD (CPUD)","Y",null,1,15,1,26]
[1,"Cowlitz County PUD No. 1","17TP-11235","DP, GO,GOP, LSE, TO","Longview (BPA) - Washington Way (CPUD)",null,"Washington Way - 7th Ave 115kV  (CPUD)",null,null,"115W1 (CPUD)","115W1-LD (CPUD),\n115W1-BD (CPUD)","Y",null,0,15,1,26]
[1,"Cowlitz County PUD No. 1","17TP-11235","DP, GO,GOP, LSE, TO","Washington Way (CPUD) - 7th Ave (CPUD)","Washington Way - 7th Ave 115kV","Washington Way - 7th Ave 115kV   (CPUD)",null,null,"115W2 (CPUD),\n115H2 (CPUD)","115W2-LD (CPUD),\n115W2-BD (CPUD),\n115H2-LD (CPUD),\n115H2-BD (CPUD","Y",null,1,15,1,26]
[1,"Cowlitz County PUD No. 1","17TP-11235","DP, GO,GOP, LSE, TO","7th Ave (CPUD) - Cowlitz (BPA)","7th Ave - Cowlitz 115kV","7th Ave - Cowlitz 115kV (CPUD)",null,null,"115H1 (CPUD)","115H1-LD (CPUD),\n115H1-BD (CPUD,\n115C6 N.O. (CPUD) at Columbia Way","Y",null,1,15,1,26]
[1,"Cowlitz County PUD No. 1","17TP-11235","DP, GO,GOP, LSE, TO","7th Ave (CPUD) - East Kelso (CPUD)","7th Ave - East Kelso 115kV","7th Ave 115kV (CPUD),\nEast Kelso 115kV (CPUD)",null,null,"115H3 (CPUD),\n115K5 (CPUD)","115H3-LD (CPUD),\n115H3-BD (CPUD),\n115K5-LD (CPUD),\n115K5-BD (CPUD)","Y",null,1,15,2,26]
[1,"Cowlitz County PUD No. 1","17TP-11235","DP, GO,GOP, LSE, TO","Longview (BPA) - Mint Farm (CPUD)","Longview - Mint Farm 115kV","Mint Farm 115kV (CPUD",null,null,"115MF1 (CPUD)","115MF1-LD (CPUD),\n115MF1-BD (CPUD)","Y",null,1,15,1,26]
[1,"Cowlitz County PUD No. 1","17TP-11235","DP, GO,GOP, LSE, TO","Mint Farm (CPUD) - Olive Way (CPUD)","Mint Farm - Olive Way 115kV","Mint Farm 115kV (CPUD,\nOlive Way 115kV (CPUD)",null,null,"115MF3 (CPUD),\n115L2 (CPUD)","115MF3-LD (CPUD),\n115MF3-BD (CPUD),\n115L2-LD (CPUD),\n115L2-BD (CPUD)","Y",null,1,15,2,26]
[1,"Cowlitz County PUD No. 1","17TP-11235","DP, GO,GOP, LSE, TO","Olive Way (CPUD) - 20th & Ocean Beach (CPUD)","Olive Way - 20th & Ocean Beach 115kV","Olive Way 115kV (CPUD),\nOcean Beach 115kV (CPUD)",null,null,"115L1 (CPUD),\n115E1 (CPUD)","115E2-LD (CPUD),\n115E2-BD (CPUD),\n115J1-LD (CPUD),\n115J2-BD (CPUD)","Y",null,1,15,2,26]
[1,"Cowlitz County PUD No. 1","17TP-11235","DP, GO,GOP, LSE, TO","20th & Ocean Beach (CPUD) - West Kelso (CPUD)","20th & Ocean Beach - West Kelso 115kV","20th & Ocean Beach 115kV (CPUD),\nWest Kelso 115kV (CPUD)",null,null,"115E2 (CPUD),\n115J1 (CPUD)","115E2-LD (CPUD),\n115E2-BD (CPUD),\n115J1-LD (CPUD),\n115J1-BD (CPUD)","Y",null,1,15,2,26]
[1,"Cowlitz County PUD No. 1","17TP-11235","DP, GO,GOP, LSE, TO","West Kelso (CPUD) - East Kelso (CPUD)","West Kelso - East Kelso 115kV","West Kelso 115kV (CPUD),\nEast Kelso 115kV (CPUD)",null,null,"115J3 (CPUD),\n115K6 (CPUD)","115J3-LD (CPUD),\n115J3-BD (CPUD),\n115K6-LD (CPUD),\n115K6-BD (CPUD)","Y",null,1,15,2,26]
[1,"Cowlitz County PUD No. 1","17TP-11235","DP, GO,GOP, LSE, TO","Bakers Corner Tap (CPUD) to Lexington - Longview #1 115kV Line (BPA)","Bakers Corner Tap to Lexington - Longview #1 115kV","Bakers Corner 115kV (CPUD)",null,null,"115T2 (CPUD)","115T2-LD (CPUD),\n115T2-BD (CPUD)","Y",null,1,15,1,26]
[1,"Cowlitz County PUD No. 1","17TP-11235","DP, GO,GOP, LSE, TO","Bakers Corner (CPUD) - Olive Way (CPUD)","Olive Way - Bakers Corner 115kV","Bakers Corner 115kV (CPUD),\nOlive Way 115kV (CPUD)",null,null,"115T3 (CPUD),\n115L6 (CPUD)","115T3-LD (CPUD),\n115T3-BD (CPUD),\n115L6-LD (CPUD),\n115L6-BD (CPUD)","Y",null,1,15,2,26]
[1,"Cowlitz County PUD No. 1","17TP-11235","DP, GO,GOP, LSE, TO","Pacific Way substation loop-in (CPUD) on Lexington - Longview #1 115kV line (BPA)",null,"Pacific Way 115kV (CPUD)",null,null,"CS--115PW1 (CPUD),\nCS-115PW2 (CPUD)","115PW1-LD (CPUD),\n115PW2-LD (CPUD)","Y",null,0,15,1,26]
[1,"Grays Harbor County PUD No. 1 ","17TP-11228"," DP, LSE, TO","Cosmopolis- Aberdeen No.1 115 kV line","Cosmopolis- Aberdeen No. 1 115kV Line (GH)",null,null,null,null,null,"Y","Brightlined",1,1,0,2,"No change to daily operations, except what would be required for BPA compliance "]
[1,"Grays Harbor County PUD No. 1 ","N/A"," DP, LSE, TO","Olympia Substation to Cosmopolis Substation 115 kV","Olympia-South EIma No. 1 115kV line (BPA)","South EIma (GH)",null,null,"SE115-3 (GH)","2442 (GH)","Y","Brightline",null,1,1,2]
[1,"Grays Harbor County PUD No. 1 ","N/A"," DP, LSE, TO","OlympiaSubstation to Cosmopolis Substation 115 kV","South Elma- Satsop Park No.1 115kV (BPA)","Satsop Park (GH)",null,null,"SE 115-4 (GH),\nSP115-1 (GH)","2447 (GH),\n2500 (GH),\n2510 (GH),\n2520 (GH)","Y","Brightline",null,1,1,2]
[1,"Grays Harbor County PUD No. 1 ",null,null,"Olympia Substation to Cosmopolis Substation 115 kV","Satsop Park- Cosmopolis No.1 115kV (BPA)",null,null,null,"SP115-2 (GH)","2530 (GH),\n2540 (GH),\n2550 (GH)",null,null,null,1,0,2]
[1,"Klickitat County PUD No. 1 ","17TX-16478",null,"Harvalum\n– Linden Switchyard (KPUD)\n","Harvalum – Linden Switchyard 230 kV line (KPUD)","Linden Switchyard (LSY) 230 kV (KPUD)",null,null,"LSY PCB 230-1 (KPUD),\nLSY PCB 230-2 (KPUD),\nLSY PCB 230-3 (KPUD)","LSY SW 230-1W (KPUD),\nLSY SW 230-2E (KPUD),\nLSY SW 230-2W (KPUD),\nLSY SW 230-3E (KPUD),\nLSY SW 230-3W (KPUD),\nLSY SW 230-4 (KPUD)\n","Y","Qualifying wind generation (EEClouse 65MW + Goldendale) included under I4",1,7,1,7,"No change to daily operations, except what would be required for BPA compliance "]
[1,"Klickitat County PUD No. 1 ","17TX-16478",null,"Linden Switchyard (KPUD)\n– EE Clouse (KPUD)\n","Linden Switchyard – EE Clouse 230 kV line (KPUD)","EE Clouse (EEC) 230 kV (KPUD)",null,null,"EEC- PCB 230-1 (KPUD),\nEEC- PCB 230-2 (KPUD)","EEC SW 230-1W (KPUD),\nEEC SW 230-2E (KPUD),\nEEC SW 230-1E (KPUD),\nEEC SW 230-2W (KPUD)\n","Y","Qualifying wind generation included under I4",1,7,1,7]
[1,"Klickitat County PUD No. 1 ","17TX-16478",null,"Rock Creek  – White Creek (KPUD)","Rock Creek – White Creek 230 kV line (KPUD)","White Creek (WCR) 230 kV (KPUD),\nWhite Creek (WCR) 34.5kV (KPUD)\n",null,null,"WCR PCB 230-3 (KPUD),\nWCR PCB 230-4 (KPUD),\nWCR PCB 230-1 (KPUD),\nWCR PCB 230-6 (KPUD)\n","WCR SW 230-0W (KPUD),\nWCR SW 230-3S (KPUD),\nWCR SW 230-4N (KPUD),\nWCR SW 230-1S (KPUD),\nWCR SW 230-6N (KPUD)\n","Y","Qualifying wind generation included under I4",1,7,2,7]
[1,"Klickitat County PUD No. 1 ","17TX-16478",null,"White Creek (KPUD) – Harvest Wind (KPUD)","White Creek – Harvest Wind 230 kV line (KPUD)","Harvest Wind (HVW) 230 kV (KPUD)",null,null,"HVW PCB 230-1 (KPUD)","HVW SW 230-1N (KPUD)","Y","Qualifying wind generation included under I4",1,7,1,7]
[1,"Klickitat County PUD No. 1 ","17TX-16478",null,"Rock Creek - Energizer (KPUD)","Rock Creek – Energizer 230 kV line (KPUD) ","Energizer (ENR) 230 kV (KPUD)",null,null,"ENR PCB 230-1 (KPUD),\nENR PCB 230-3 (KPUD)","ENR SW 230-2N (KPUD),\nENR SW 230-1S (KPUD),\nENR SW 230-3W (KPUD)","Y","Qualifying wind generation included under I4",{"$f":"IF(F35=\"\",0,LEN(F35)-LEN(SUBSTITUTE(F35,\",\",\"\"))+1)","v":1},{"$f":"SUMIF(B:B,B35,N:N)","v":7},{"$f":"IF(G35=\"\",0,LEN(G35)-LEN(SUBSTITUTE(G35,\",\",\"\"))+1)","v":1},{"$f":"SUMIF(B:B,B35,P:P)","v":7}]
[1,"Klickitat County PUD No. 1 ","17TX-16478",null,"Energizer (KPUD) – Willis (KPUD)","Energizer – Willis 230 kV line (KPUD)","Willis (WLS) 230 kV (KPUD)",null,null,"WLS PCB 230-3 (KPUD),\nWLS PCB 230-1 (KPUD)","WLS SW 230-2N (KPUD),\nWLS SW 230-1S (KPUD),\nWLS SW 230-3W (KPUD)","Y",null,1,7,1,7,"No change to daily operations, except what would be required for BPA compliance "]
[1,"Klickitat County PUD No. 1 ","17TX-16478",null,"Willis (KPUD)- Dooley (KPUD)","Willis  – Dooley 230 kV line (KPUD)","Dooley (DLY) 230 kV (WPP)",null,null,"DLY PCB 230-3 (WPP),\nDLY PCB 230-4 (WPP)","DLY SW 230-1N (KPUD),\nDLY SW 230-3N (WPP),\nDLY SW 230-4N (WPP)",null,null,1,7,null,7]
[1,"Lewis County PUD No. 1","17TP-11251"," GO, GOP, TO","Cowlitz Falls-Glenoma (LCPUD)","Cowlitz Falls-Glenoma (LCPUD)","Cowlitz Falls 230 kV (LCPUD)",null,null,"230-35 (LCPUD), 152-1 Unit 1 (LCPUD),\n152-2 Unit 2 (LCPUD)\n","230-36, 230-34, 230-37 (LCPUD), 189-1, 189-2, 189-3 (LCPUD)","Y","Qualifying generation - included under I2",1,2,1,2]
[1,"Lewis County PUD No. 1","N/A"," GO, GOP, TO","Glenoma-Mossyrock (LCPUD)","Glenoma-Mossyrock (LCPUD)","Glenoma 230 kV (LCPUD)",null,null,"230-31 (LCPUD)","230-10M (LCPUD), 230-30, 230-32, 230-37 (LCPUD)","Y","Qualifying generation - included under I2",1,2,1,2,"No change to daily operations, except what would be required for BPA compliance "]
[1,"Lower Valley Energy","17TP-11252",null,"Palisades – Snake River 115 kV","Palisades – Snake River 115 kV (LVE)","Snake River 115 kV (LVE)\n",null,null,"SP741 (LVE),\n762 (USBR)\n","SP721 (LVE), SP722 (LVE),\n761 (USBR),\n763 (USBR)\n","Y","Line leased to BPA, Snake River substation 50% leased to BPA",1,8,1,5]
[1,"Lower Valley Energy",null,null,"Snake River – Tincup 115 kV\n(LVE)","Snake River – Tincup 115 kV (LVE)","Tincup 115 kV (LVE)",null,null,"TS842 (LVE),\nST743 (LVE)","TS725 (LVE), T724 (LVE),\nST725 (LVE),  ST727 (LVE)\n","Y",null,1,8,1,5]
[1,"Lower Valley Energy",null,null,"Snake River – Dry Creek 115 kV\n(LVE)","Snake River – Freedom115 kV (LVE)","Dry Creek 115 kV (LVE)",null,null,"DF841 (LVE),\nSF744 (LVE)\n","DF827 (LVE),\nDF828 (LVE),\nF725,\nFS721,\nSF730 (LVE),\nSF731 (LVE),\nF726,\nFD722,\nFS723,\nFD724","Y",null,1,8,1,5]
[1,"Lower Valley Energy",null,null,"Dry Creek – Tincup 115 kV (LVE)","Dry Creek – Valley 115 kV (LVE)",null,null,null,"TL743,\nDV742 (LVE)\n","TL730 (LVE),\nTL731 (LVE),\nDV730 (LVE),\nDV731 (LVE),\nVD881,\nVL882,\nLV824,\nL823,\nLV821","Y",null,1,8,null,5]
[1,"Lower Valley Energy",null,null,"Snake River – Jackson 115 kV (LVE)","Snake River – Hoback 115 kV (LVE)","Jackson 115 kV (LVE)\n",null,null,"JR743 (LVE),\nSH742","JR727 (LVE),\nJR728 (LVE),\nHS782,\nSH723 (LVE),\nSH724 (LVE),\nHR781,\nRH721,\nRJ722","Y",null,1,8,1,5]
[1,"Lower Valley Energy",null,null,"Jackson – Teton 115 kV (LVE)","Jackson - Wilson  115 kV (LVE)"," ",null,null,"JW741 (LVE)","7494,\nJW723 (LVE),\nJW724 (LVE),\nWJ722,\nWT721","Y",null,1,8,null,5]
[1,"Lower Valley Energy",null,null,"Jackson – East Jackson 115 kV (LVE)","Jackson – East Jackson 115 kV (LVE)","E. Jackson 115 kV (LVE)\n",null,null,"EJ742,\nJE742 (LVE)","EJ728 (LVE),\nEJ729 (LVE),\nJE721 (LVE),\nJE722 (LVE)","Y",null,1,8,1,5]
[1,"Lower Valley Energy",null,null,"East Jackson – Teton 115 kV","East Jackson – Crystal 115 kV (LVE)"," ",null,null,"EC743 (LVE)","7580,\nEC721 (LVE),\nEC722 (LVE),\nCT723,\nCE722","Y",null,1,8,null,5]
[1,"Northern Wasco ","17TP-11232"," DP, LSE, TO","Big Eddy- The Dalles No 1 115kV line","Second Street –The Dalles Substation 115kV Line Segment (NWasco)",null,null,null,null,"2K-14 \nThe Dalles side Disconnect 115kV  (NWasco),\n2K-12\nSecond Street Transformer No. 1  Disconnect 115kV  (NWasco)\n",null,null,1,1,0,1]
[1,"Northern Wasco ","17TP-11232"," DP, LSE, TO","Big Eddy- The Dalles No 1 115kV line"," Big Eddy – Seufert 115kV Line Segment (NWasco)","Seufert (NWasco)",null,null,null,"2K-22  \nBig Eddy Line Side Disconnect 115kV  (NWasco),\n2K-3 \nSeufert Transformer Disconnect 115kV  (NWasco)","Y","Brightline",null,null,null,1]
[1,"Northern Wasco ","17TP-11232"," DP, LSE, TO","Big Eddy- The Dalles No 1 115kV line","Seufert - Columbia Heights 115kV Line Segment (NWasco)","Col. Heights (NWasco)",null,null,"2K-21\nColumbia Heights \nTransformer Transrupter 115kV  (NWasco)\n","2K-17\nSeufert Line Side  Disconnect 115kV  (NWasco),\n2K-505\nSeufert Line Side Disconnect grounding Switch 115kV  (NWasco),\n2K-18\nSeufert Line Side Tap Disconnect 115kV  (NWasco),\n2K-19\nColumbia Heights Transformer Disconnect 115kV  (NWasco),\n2K-23  \nColumbia Heights Line Side Disconnect 115kV  (NWasco)","Y","Brightline",null,null,null,1]
[1,"Northern Wasco ","17TP-11232"," DP, LSE, TO","Big Eddy- The Dalles No 1 115kV line","Columbia Heights – Three Mile Tap   115kV Line Tap\n(NWasco)",null,null,null,null,"2K-25 \nColumbia Heights Line Side Disconnect 115kV (NWasco), \n2K-27 \nThree Mile Tap Disconnect 115kV (NWasco), \n2K-16\nThree Mile Tap  Side Disconnect 115kV  (NWasco), \n2K-500\nThree Mile Tap  Side Disconnect grounding Switch 115kV (NWasco)  \n","Y","Brightline",null,null,0,1]
[1,"Northern Wasco ","17TP-11232"," DP, LSE, TO","Big Eddy- The Dalles No 1 115kV line","Three Mile Tap –2nd Street   115kV Line Tap (NWasco)\n","2nd Street (N. Wasco)",null,null,null,"2K-13\nThree Mile Tap Structure Line Side Disconnect (Motor Operated) 115kV (NWasco), \n2K-504\nThree Mile Tap  Side Disconnect grounding Switch 115kV (NWasco), \n2K-11\nSecond Street Transformer No. 2 Disconnect 115kV (NWasco),\n2K-26 \nSecond Street Line Side Disconnect 115kV (NWasco)  \n","Y","Brightline",null,null,1,1,"No change to daily operations, except what would be required for BPA compliance "]
[1,"Okanogan County PUD No. 1","17TP-11233"," DP/TO","Brewster (OKPUD) – Foster Creek (DCPUD)","Brewster – Foster Creek (DCPUD) 115 kV line (OKPUD)","Brewster 115 kV (OKPUD)",null,null,"T-52,\n5272\n","T-52 MBD ABD LSD,\n5271,\n5273,\nB-1295 (OKPUD)\n\n5271,\n5273\n","Y",null,1,5,1,3,"No change to daily operations, except what would be required for BPA compliance "]
[1,"Okanogan County PUD No. 1","17TP-11233"," DP/TO","Brewster (OKPUD) – Okanogan (OKPUD)","Brewster-Ophir 115 kV (OKPUD)","Okanogan 115kV (OKPUD)",null,null,"B-1482,\nT-51\n","B-1482 MBD ABD LSD,\nT-51 MBD ABD LSD,\nB-453 (Ophir Tap),\nOphir-Okanogan 115 kV line (OKPUD),\nB-455 (Ophir Tap)\n",null,null,1,5,1,3]
[1,"Okanogan County PUD No. 1","17TP-11233"," DP/TO","Okanogan (OKDPUD) – Twisp (OKPUD","Okanogan – Twisp 115kV line (OKPUD)","Twisp 115kV\n",null,null,"TW-TB-2,\nB-1486\n","TW-TS-4,\nTW-TS-5,\nTW-TS-6,\nB-1486 MBD ABD LSD,\nT-103 (Malott Tap),\nT-106 (Malott Tap),\nB-103 (Winthrop Tap – BPA),",null,null,1,5,1,3]
[1,"Okanogan County PUD No. 1","17TP-11233"," DP/TO","Brewster (OKPUD) –  Twisp (OKPUD)","Brewster – Pateros 115 kV line (OKPUD)","\n",null,null,"TW-TB-3,\nT-53\n","TW-TS-7,\nTW-TS-8,\nTW-TS-9,\nT-111 (Pateros Tap),\nPateros-Twisp 115 kV line (OKPUD),\nT-112 (Pateros Tap),\nT-113 (Pateros Tap),\nT-53 MBD ABD LSD",null,null,1,5,null,3]
[1,"Okanogan County PUD No. 1","17TP-11233"," DP/TO","Okanogan (OKPUD) – East Omak (BPA)","Okanogan – CIPV 115 kV line (OKPUD)",null,null,null,"B77,\nB-1488,\nB-1480\n","B77 MBD ABD LSD,\nB-1488 MBD ABD LSD,\nB-1480 MBD ABD LSD, \nT-090 (CIPV Tap),\nCIPV – Sandflat 115 kV line (OKPUD),\nT-091 (CIPV Tap),\nT-119 (Sandflat Tap),\nSandflat - East Omak 115 kV line (OKPUD),\nT-121 (Sandflat Tap),\nT-120 (Sandflat Tap)\n",null,null,1,5,null,3]
[1,"Pend Oreille County PUD No. 1","17TP-11234","GO/TO/TOP/GOP/DP","Box Canyon tap to Colville – Boundary No 1 115kV line (POPD)","Box Canyon tap 115kV line","Box Canyon Substation 115kV (POPD)",null,null,"PB6452 (POPD),\nB1398 (POPD)\n","PB6451 (POPD),\nPB6453 (POPD),\nPB6455 (POPD)\n","Y",null,1,4,1,5]
[1,"Pend Oreille County PUD No. 1",null,{"$f":"D58","v":"GO/TO/TOP/GOP/DP"},"Box Canyon Substation\n(POPD) – Usk Switchyard (POPD)","Box Canyon – Usk 115kV line","Usk Switchyard 115kV (POPD)",null,null,"PU6552 (POPD),\nPB6152 (POPD),\nPB6252 (POPD),\nPB6352 (POPD)","PU6551 (POPD),\nPU6553 (POPD),\nPU6555 (POPD),\nPB6151 (POPD),\nPB6153 (POPD),\nPB6251 (POPD),\nPB6253 (POPD),\nPB6351 (POPD),\nPB6353 (POPD)","Y",null,1,4,1,5,"Since they have been their own TOP, they may want to maintain some functional operation consistant with what they do today. This will be determined as we work through the TOP requirement checklist."]
[1,"Pend Oreille County PUD No. 1",null,null,"Usk Switchyard (POPD) – Usk Substation (BPA)","Usk – Usk\n115kV line","Usk Substation 115kV (POPD), Usk Substation 230kV (POPUD)",null,null,null,"PU62252 (POPD),\nPU82052 (POPD),\nA960 (POPD),\nPU6550 (POPD)",null,null,1,4,2,5]
[1,"Pend Oreille County PUD No. 1",null,null,"Usk Switchyard (POPD) – Pine Street (POPD)","Usk – Pine Street 115kV line","Pine Street Substation 115kV (POPD)",null,null,"PP6652 (POPD),\nPP6752 (POPD),\nPP6852 (POPD),\nPP6952 (POPD),\nPU6652 (POPD)","PP6651 (POPD),\nPP6653 (POPD),\nPP6751 (POPD),\nPP6753 (POPD),\nPP6851 (POPD),\nPP6853 (POPD),\nPP6951 (POPD),\nPP6953 (POPD),\nPU6651 (POPD),\nPU6653 (POPD)",null,null,1,4,1,5]
[1,"Umatilla Electric Cooperative ","17TX-16477",null,"McNary - Hermiston Generating Company 230 kV","McNary-Hermiston Generating Plant 230kV",null,null,null,null,null,"Y","Qualifying generation - included under I2",1,1,0,0,"No change to daily operations, except what would be required for BPA compliance "]
[1,"Whatcom County PUD No. 1 ","17TX-16479",null,"Bellingham (BPA) - Refinery (Whatcom) 115kV","Bellingham (BPA) - Refinery 115kV Line (Whatcom)","Refinery 115kV (Whatcom)",null,null,"5513 (Whatcom),\n5514 (Whatcom),\n5515 (Whatcom),\n5516 (Whatcom),\n5507 (Whatcom)","5504 (Whatcom),\n5505 (Whatcom),\n5517 (Whatcom),\n5518 (Whatcom),\n5519 (Whatcom), \n5520 (Whatcom),\n5521 (Whatcom), \n5522 (Whatcom),\n5523 (Whatcom), \n5524 (Whatcom)","Y","Brightline, power transfer from Ferndale Cogen to Bellingham",1,1,1,1]
[0,"Benton County PUD No. 1 ","N/A"," DP, LSE"," ",null,null,null,null,null,null,"Y","Qualifying wind generation, 97 MW, included under I4\nThe circuit switchers do not qualify as BES, but are required to operate the line.",0,0,0,0]
[0,"Consumers Power, Inc. ","10TX-14572"," Not registered","1.    Harrisburg - Greenberry (CPI) ",null,null,null,null,null,null,"N","Excluded by E1",0,0,0,1]
[0,"Consumers Power, Inc. ","10TX-14572"," Not registered","2.   Airport Substation (Albany-Lebanon No. ",null,"Airport 115kV",null,null,null,"Two future breakers,","Y","Will be part of the BES path when constructed",0,0,1,1]
[0,"Eugene Water and Electric Board","N/A","DP, GO, GOP, LSE, TO, TOP, TP","1. Willakenzie - McKenzie - Coburg - River Loop - Spring Creek - Irvington - Prairie 115 kV","Willakenzie - McKenzie 115kV,\nMcKenzie - Coburg 115kV,\nCoburg - Spring Creek 115kV,\nSpring Creek - Irving tap 115kV","McKenzie 115kV,\nSpring Creek 115kV,\nCoburg 115kV",null,null,2,9,"Y",null,{"$f":"IF(F67=\"\",0,LEN(F67)-LEN(SUBSTITUTE(F67,\",\",\"\"))+1)","v":4},{"$f":"SUMIF(B:B,B67,N:N)","v":38},{"$f":"IF(G67=\"\",0,LEN(G67)-LEN(SUBSTITUTE(G67,\",\",\"\"))+1)","v":3},{"$f":"SUMIF(B:B,B67,P:P)","v":32}]
[0,"Eugene Water and Electric Board","N/A","DP, GO, GOP, LSE, TO, TOP, TP","2. Prairie - Jessen - Danebo  - Lane (BPA) 115 kV","Prairie - Jessen 115kV,\nJessen - Danebo 115kV,\nDanebo  - Lane (BPA) 115kV","Prairie 115kV,\nJessen 115kV,\nDanebo 115kV",null,null,null,5,"Y",null,3,38,3,32]
[0,"Eugene Water and Electric Board","N/A","DP, GO, GOP, LSE, TO, TOP, TP","3. Lane (BPA) - Crow - Willow Creek - Hundai - Westmoreland 115 kV","Westmoreland - Willow Creek 115kV,\nWillow Creek-Hundai #1,\nWillow Creek-Hundai #2,\nWillow Creek - Lane (BPA)","Willow Creek 115kV,\nHundai 115kV",null,null,null,5,"Y",null,4,38,2,32]
[0,"Eugene Water and Electric Board","N/A","DP, GO, GOP, LSE, TO, TOP, TP","4. Westmoreland - Seneca - Eugene (BPA) 115 kV","Westmoreland - Seneca 115kV,\nSeneca - Bertelson 115kV","Seneca 115,\nBertelson 115",null,null,null,5,"Y",null,2,38,2,32]
[0,"Eugene Water and Electric Board","N/A","DP, GO, GOP, LSE, TO, TOP, TP","5. Currin - Willakenzie - Cal Young - Santa Clara - Prairie 115 kV","Currin - Willakenzie 115kV,\nWillakenzie - Cal Young 115kV,\nCal Young - Santa Clara 115kV, \nSanta Clara - Prairie 115kV","Willakenzie 115kV,\nCal Young 115kV,\nSanta Clara 115kV",null,null,null,8,"Y",null,4,38,3,32]
[0,"Eugene Water and Electric Board","N/A","DP, GO, GOP, LSE, TO, TOP, TP","6. Currin - Bloomburg - Goshen - Alvey (BPA) 115 kV","Currin - Alvey (BPA) 115kV","Currin 115kV",null,null,null,1,"Y",null,1,38,1,32]
[0,"Eugene Water and Electric Board","N/A","DP, GO, GOP, LSE, TO, TOP, TP","7. Curren - Laurel - Hilyard - Monroe - Dillard - Jefferson - Westmoreland 115 kV","Currin - Laurel 115kV,\nLaurel - Hilyard 115kV,\nHillyard - Dillard 115kV,\nHilyard - Monroe 115kV,\nMonroe - Jefferson 115kV,\nJefferson - Westmoreland 115kV","Laurel 115kV,\nDillard 115kV,\nHilyard 115kV,\nMonroe 115kV,\nJefferson 115kV,\nWestmoreland 115kV",null,null,null,8,"Y",null,6,38,6,32]
[0,"Eugene Water and Electric Board","N/A","DP, GO, GOP, LSE, TO, TOP, TP","8. Currin - Willamette - Adams - Bethel - Eugene (BPA) 115 kV","Currin - Willamette 115kV,\nWillamette - University 115kV,\nUniversity - Adams 115kV,\nAdams - Bethel 115kV,\nBethel - Eugene (BPA) 115kV","Willamete 115kV, \nUniversity 115kV,\nAdams 115kV, \nBethel 115kV",null,null,null,11,"Y",null,5,38,4,32]
[0,"Eugene Water and Electric Board","N/A","DP, GO, GOP, LSE, TO, TOP, TP","9. Willamette Tap - Oakway - Delta - River Road - Eugene (BPA) 115 kV","Willamette Tap  - Oakway 115kV,\nOakway - Delta 115kV,\nDelta - River Road 115kV,\nRiver Road - Eugene (BPA)115kV","Oakway 115kV,\nDelta 115kV,\nRiverRoad 115kV",null,null,null,null,"Y",null,4,38,3,32]
[0,"Eugene Water and Electric Board","N/A","DP, GO, GOP, LSE, TO, TOP, TP","10. Currin - Hayden Bridge Switching Station -  Weyerhaeuser No. 3 - Weyerhaeuser No. 1 - Weyerhaeuser No. 2 - Thurston 115 kV","Currin  - Hayden Bridge Switching Station 115 kV,\nHayden Bridge Switching Station - Weyerhaeuser No. 3 115 kV,\nWeyerhaeuser No. 3 - Weyerhaeuser No. 1 115 kV,\nWeyerhaeuser No. 1 -Weyerhaeuser No. 2 115 kV,\n Weyerhaeuser No. 2  - Thurston 115 kV","Hayden Bridge Switching Station 115kV,\nWeyerhaeuser No. 3 115kV,\nWeyerhaeuser No. 1 115kV,\nWeyerhaeuser No. 2 115 kV,\nThurston ",null,null,null,6,"Y",null,5,38,5,32]
[0,"Oregon Trail Electric Coop.","N/A","TO","1.    Hines – West John Day - Quartz 138 kV","Hines-Quartz 138 kV ",null,null,null,null,null,"Y","Brightline, transfers power across system from LaGrande to Harney\nBPA leases this line",1,{"$f":"SUMIF(B:B,B77,N:N)-1","v":0},0,0,"OTEC is currently pursuing TOP Services from Idaho Power, not BPA. Further, the only item inventoried for TOP is leased to BPA so we wouldn't charge them for its operation."]
[0,"Snohomish County PUD","N/A","DP, GO, GOP, LSE, TO, TOP, TP","1. Murray - East Arlington 115 kV","Murray - East Arlington 115 kV",null,null,null,null,"?","Y",null,1,{"$f":"SUMIF(B:B,B78,N:N)","v":44},0,16]
[0,"Snohomish County PUD","N/A","DP, GO, GOP, LSE, TO, TOP, TP","2. East Arlington- Stimson Crossing 115 kV","East Arlington- Stimson Crossing",null,null,null,null,"?","Y",null,1,44,0,16]
[0,"Snohomish County PUD","N/A","DP, GO, GOP, LSE, TO, TOP, TP","3. Stimson Crossing - N. Stanwood-Lake Goodwin- Camano Sub 115 kV","Stanwood-Lake Goodwin,\nLake Goodwin - Camano Sub","Lake Goodwin",null,null,null,"?","Y",null,2,44,1,16]
[0,"Snohomish County PUD","N/A","DP, GO, GOP, LSE, TO, TOP, TP","4. Murray-Smokey Pt - Stimson Crossing 115 kV","Murray-Smokey Pt ,\nSmokey Pt - Stimson Crossing","Smokey Pt",null,null,null,"?","Y",null,2,44,1,16]
[0,"Snohomish County PUD","N/A","DP, GO, GOP, LSE, TO, TOP, TP","5. Stimson Crossing -N. Marysville-Delta 115 kV","Marysville-Delta",null,null,null,null,"?","Y",null,1,44,0,16]
[0,"Snohomish County PUD","N/A","DP, GO, GOP, LSE, TO, TOP, TP","6. Murray - Granite Tap - Lake Stevens-Snohomish 115 kV","Murray - Granite Tap - Lake Stevens,\n Lake Stevens -Snohomish","Granite Tap",null,null,null,"?","Y",null,2,44,1,16]
[0,"Snohomish County PUD","N/A","DP, GO, GOP, LSE, TO, TOP, TP","7. Delta-Tulalip- Stimsons Crossing 115 kV","Delta-Tulalip- Stimsons Crossing","Tulalip",null,null,null,"?","Y",null,1,44,1,16]
[0,"Snohomish County PUD","N/A","DP, GO, GOP, LSE, TO, TOP, TP","9. BPA Snohomish-Beverly Park #3 (S-BP#3) 115 kV","BPA Snohomish-Beverly Park #3 (S-BP#3)",null,null,null,null,"?","Y",null,1,44,0,16]
[0,"Snohomish County PUD","N/A","DP, GO, GOP, LSE, TO, TOP, TP","10. Beverly Park - Casino - Paine Field 115 kV","Beverly Park - Casino,\nCasino - Paine Field","Casino",null,null,null,"?","Y",null,2,44,1,16]
[0,"Snohomish County PUD","N/A","DP, GO, GOP, LSE, TO, TOP, TP","11. Paine Field - Boeing Sub 115 kV","Paine Field - Boeing Sub",null,null,null,null,"?","Y",null,1,44,0,16]
[0,"Snohomish County PUD","N/A","DP, GO, GOP, LSE, TO, TOP, TP","12. Paine Field - Lake Serene-Halls Lake 115 kV","Paine Field - Lake Serene,\nLake Serene-Halls Lake","Lake Serene",null,null,null,"?","Y",null,2,44,1,16]
[0,"Snohomish County PUD","N/A","DP, GO, GOP, LSE, TO, TOP, TP","13. BPA Snohomish-Fobes-Delta 115 kV","BPA Snohomish-Fobes,\nFobes-Delta","Fobes",null,null,null,"?","Y",null,2,44,1,16]
[0,"Snohomish County PUD","N/A","DP, GO, GOP, LSE, TO, TOP, TP","14. Delta - Navy Sub 115 kV","Delta - Navy Sub",null,null,null,null,"?","Y",null,1,44,0,16]
[0,"Snohomish County PUD","N/A","DP, GO, GOP, LSE, TO, TOP, TP","15. Scott - Everett - Navy 115 kV","Scott - Everett,\nEverett - Navy","Everett",null,null,null,"?","Y",null,2,44,1,16]
[0,"Snohomish County PUD","N/A","DP, GO, GOP, LSE, TO, TOP, TP","16. BPA Snohomish-Everett 115 kV","BPA Snohomish-Everett",null,null,null,null,"?","Y",null,1,44,0,16]
[0,"Snohomish County PUD","N/A","DP, GO, GOP, LSE, TO, TOP, TP","17. Scott - Waterfront - Snohomish 115 kV","Scott - Waterfront,\nWaterfront - Snohomish","Waterfront",null,null,null,"?","Y",null,2,44,1,16]
[0,"Snohomish County PUD","N/A","DP, GO, GOP, LSE, TO, TOP, TP","18. BPA Snohomish-Olivia - Paine Field 115 kV","BPA Snohomish-Olivia,\nOlivia - Paine Field","Olivia",null,null,null,"?","Y",null,2,44,1,16]
[0,"Snohomish County PUD","N/A","DP, GO, GOP, LSE, TO, TOP, TP","19. Beverly Park - Swamp Creek - Snoking 115 kV","Beverly Park - Swamp Creek,\nSwamp Creek - Snoking","Swamp Creek",null,null,null,"?","Y",null,2,44,1,16]
[0,"Snohomish County PUD","N/A","DP, GO, GOP, LSE, TO, TOP, TP","20. BPA Snohomish - Boeing Sub 115 kV","BPA Snohomish - Boeing Sub",null,null,null,null,"?","Y",null,1,44,0,16]
[0,"Snohomish County PUD","N/A","DP, GO, GOP, LSE, TO, TOP, TP","21. Boeing Sub - 20th Avenue Sub 115 kV","Boeing Sub - 20th Avenue Sub",null,null,null,null,"?","Y",null,1,44,0,16]
[0,"Snohomish County PUD","N/A","DP, GO, GOP, LSE, TO, TOP, TP","22. BPA Snohomish-JHP-Snohomish 115 kV","BPA Snohomish-JHP,\nJHP-Snohomish","JHP",null,null,null,"?","Y",null,2,44,1,16]
[0,"Snohomish County PUD","N/A","DP, GO, GOP, LSE, TO, TOP, TP","23. Halls Lake Sub - Ballinger - Westgate 115 kV","Halls Lake Sub - Ballinger,\nBallinger - Westgate","Ballinger",null,null,null,"?","Y",null,{"$f":"IF(F99=\"\",0,LEN(F99)-LEN(SUBSTITUTE(F99,\",\",\"\"))+1)","v":2},44,{"$f":"IF(G99=\"\",0,LEN(G99)-LEN(SUBSTITUTE(G99,\",\",\"\"))+1)","v":1},{"$f":"SUMIF(B:B,B99,P:P)","v":16}]
[0,"Snohomish County PUD","N/A","DP, GO, GOP, LSE, TO, TOP, TP","24. Halls Lake Sub - 5 Corners - Lynnwood 115 kV","Halls Lake Sub - 5 Corners,\n5 Corners - Lynnwood"," 5 Corners",null,null,null,"?","Y",null,2,44,1,16]
[0,"Snohomish County PUD","N/A","DP, GO, GOP, LSE, TO, TOP, TP","25. Snoking - Thrashers Corner- Halls Lake Sub 115 kV","Snoking - Thrashers Corner,\nThrashers Corner - Halls Lake Sub","Thrashers Corner",null,null,null,"?","Y",null,2,44,1,16]
[0,"Snohomish County PUD","N/A","DP, GO, GOP, LSE, TO, TOP, TP","26. Snoking - Canyon Park Sub - Halls Lake Sub 115 kV","Snoking - Canyon Park Sub,\nCanyon Park Sub - Halls Lake Sub","Canyon Park Sub",null,null,null,"?","Y",null,2,44,1,16]
[0,"Snohomish County PUD","N/A","DP, GO, GOP, LSE, TO, TOP, TP","27. Halls Lake - Brightwater 115 kV","Halls Lake - Brightwater 115kV",null,null,null,null,"?","Y",null,1,44,0,16]
[0,"Snohomish County PUD","N/A","DP, GO, GOP, LSE, TO, TOP, TP","28. Snohomish (SNOH S1) - Jackson 115 kV","Snohomish-Jackson 115kV",null,null,null,null,"?","Y",null,1,44,0,16]
[0,"Snohomish County PUD","N/A","DP, GO, GOP, LSE, TO, TOP, TP","29. Snoking (SNOk S1) - North Creek 115 kV","Snoking (SNOk S1) - North Creek 115kV",null,null,null,null,"?","Y",null,1,44,0,16]
[0,"Snohomish County PUD","N/A","DP, GO, GOP, LSE, TO, TOP, TP","30. Snoking (SNOk S3) - Brightwater 115 kV","Snoking (SNOk S3) - Brightwater 115kV",null,null,null,null,"?","Y",null,1,44,0,16,"No change to daily operations, except what would be required for BPA compliance "]
[0,"Springfield Utility Board ","N/A"," not registered","1.   Springfield Interconnected Network 115 kV","Alvey - Springfield No. 1 115kV  ","Springfield 115kV","Spingfield 3MVAR Cap*",null,null,"2S612,\nCS-2S616*","Y","*We cannot consider Springfield's system for a Local Network Exemption because there is not two years of historic data with the new configuration. They may be able to apeal to get all or part of their system for that exemption, but we can't make that determination with the current data we have. \n\nAll lines qualify for BES due to brightline.",1,11,1,7]
[0,"Springfield Utility Board ","N/A"," not registered","1.   Springfield Interconnected Network 115 kV","Springfield - Tenth Street 115kV ","Tenth Street 115kV",null,null,null,"2S601,\n2S618","Y",null,1,11,1,7]
[0,"Springfield Utility Board ","N/A"," not registered","1.   Springfield Interconnected Network 115 kV","Alvey - Tenth Street 115kV ",null,null,null,null,"2S197","Y",null,1,11,0,7]
[0,"Springfield Utility Board ","N/A"," not registered","1.   Springfield Interconnected Network 115 kV","Tenth Street - Laura 115kV ","Laura Street 115kV",null,null,null,"2S198,\n2S691","Y",null,1,11,1,7]
[0,"Springfield Utility Board ","N/A"," not registered","1.   Springfield Interconnected Network 115 kV","Laura - Gateway Tap 115kV ",null,null,null,null,"2S159","Y",null,1,11,0,7]
[0,"Springfield Utility Board ","N/A"," not registered","1.   Springfield Interconnected Network 115 kV","McKenzie - Gateway Tap 115kV Tap ",null,null,null,null,null,"Y",null,1,11,0,7]
[0,"Springfield Utility Board ","N/A"," not registered","1.   Springfield Interconnected Network 115 kV","Gateway - Gateway Tap 115kV ","Gateway 115kV",null,null,null,"2S276","Y",null,1,11,1,7]
[0,"Springfield Utility Board ","N/A"," not registered","1.   Springfield Interconnected Network 115 kV","Gateway - Olympic 115kV ","Olympic 115kV",null,null,null,"2S282,\n2S621","Y",null,1,11,1,7]
[0,"Springfield Utility Board ","N/A"," not registered","1.   Springfield Interconnected Network 115 kV","Springfield - Olympic 115kV ",null,null,null,null,"2S625,\n2S607","Y",null,1,11,0,7]
[0,"Springfield Utility Board ","N/A"," not registered","1.   Springfield Interconnected Network 115 kV"," Jasper - Olympic 115kV ","Jasper 115kV",null,null,null,"2S632,\n2S104","Y",null,1,11,1,7]
[0,"Springfield Utility Board ","N/A"," not registered","1.   Springfield Interconnected Network 115 kV","Mt. Vernon - Jasper 115kV ","Mt. Vernon 115kV",null,null,null,"2S146,\n2S128","Y",null,1,11,1,7,"No change to daily operations, except what would be required for BPA compliance "]
[0,"TransAlta Centralia Generation, LLC ","09TX-14131"," GO, GOP, TO","1.   Paul Substation-Centralia PH  500 kV","Paul Substation-Centralia PH No. 1 500kV ",null,null,null,null,"4542,\n4544,\nCBS13","Y","Qualifying generation - included under I2",1,2,0,0,"No change to daily operations, except what would be required for BPA compliance "]
[0,"TransAlta Centralia Generation, LLC ","09TX-14131"," GO, GOP, TO","1.   Paul Substation-Centralia PH  500 kV","Paul Substation-Centralia PH No. 2 500kV ",null,null,null,null,4536,"Y","Qualifying generation - included under I2",1,2,0,0]
[0,"US DOE Richland ","N/A"," DP, LSE, TO","1.    Midway – HEW (A7) – Ashe # 1 ","Midway – HEW (A7) – Ashe # 1 230kV ","A9 230kV,\nA7 230kV",null,null,null,null,"Y","Brightline, power transfer across system",1,2,2,4,"Will no longer be a TO once Midway-Ashe is complete"]
[0,"US DOE Richland ","N/A"," DP, LSE, TO","2.    Midway – HEW (A6 & A8) – Ashe # 1 ","Midway – HEW (A6 & A8) – Ashe # 1 230kV ","A8 230kV,\nA6 230kV\n",null,null,null,"A-386,\nA-384,\nA-362,\nA-366,\nA-364","Y","Brightline, power transfer across system",1,2,2,4]
[0,"US Naval Base Kitsap ","N/A"," DP, LSE, TO","1.    Sub X – Sub H 115 kV",null,"Station H",null,null,null,null,"Y","Originally exclused at local network, revisited on 12/18/15",0,1,1,3,"No change to daily operations, except what would be required for BPA compliance "]
[0,"US Naval Base Kitsap ","N/A"," DP, LSE, TO","2.    Sub H - Sub FG 115 kV","Station H-Station FG 115kV","Station GF",null,null,null,null,"Y","Originally exclused at local network, revisited on 12/18/16",1,1,1,3]
[0,"US Naval Base Kitsap ",null,null,"3.    Kitsap - Bangor - Foss Corner 115 kV",null,"Bangor (Substation 1)",null,null,null,null,"Y","Instances of bi-direction power flow on Kitsap-Bagor",0,1,1,3]
[]
[]
[]
[]
[null,"Not BES"]
[null,"TransAlta Centralia Generation, LLC ","09TX-14131"," GO, GOP, TO","3.    Line 1B from a tap point to Line 1 to Big Hanaford Substation ",null,null,null,null,null,null,"N","Excluded by E1 - Radial"]
[null,"Klickitat County PUD No. 1 ","N/A",null,"2.   Rock Creek (BPA) - White Creek (KPUD) - Harvest Wind (KPUD) ","White Creek (KPUD) - Harvest Wind (KPUD) 230kV ",null,null,null,null,null,"N","Radial, E1, not enough qualifying generation"]
[null,"Public Utility District No. 1 of Cowlitz County ","09TX-14537"," DP, GO,GOP, LSE, TO","1.    Longview - Hycom ",null,null,null,null,null,null,"N","Excluded by E1 - Radial"]
[null,"Public Utility District No. 1 of Cowlitz County ","09TX-14537"," DP, GO,GOP, LSE, TO","2.    Cowlitz - Longview Fibre ",null,null,null,null,null,null,"N","Excluded by E2, Gen on customer side for customer load"]
[null,"Public Utility District No. 1 of Cowlitz County ","09TX-14537"," DP, GO,GOP, LSE, TO","3.    Longview - Chemical ",null,null,null,null,null,null,"N","Excluded by E1 - Radial"]

{"sheet":"Print View - Asset List","index":4,"n_rows":123,"n_cols":7,"rows_kept":123,"cut":false,"hidden":true,"merged":[]}
[{"$f":"'Asset List'!B1","v":"Customer"},{"$f":"'Asset List'!E1","v":"Path"},{"$f":"'Asset List'!F2","v":" Line Segments"},{"$f":"'Asset List'!G2","v":"Buses"},{"$f":"'Asset List'!I2","v":"Disconnect Switches"},{"$f":"'Asset List'!K2","v":"Breakers/CS"},{"$f":"'Asset List'!R2","v":"Customer Perspective"}]
[{"$f":"'Asset List'!B3","v":"Clark Public Utilities"},{"$f":"IF('Asset List'!E3=\"\",\"\",'Asset List'!E3)","v":"1. Ross - Hazel Dell 115 kV"},{"$f":"IF('Asset List'!F3=\"\",\"\",'Asset List'!F3)","v":"Ross-Hazel Dell 115kV"},{"$f":"IF('Asset List'!G3=\"\",\"\",'Asset List'!G3)","v":"Hazel Dell 115 kV"},{"$f":"IF('Asset List'!I3=\"\",\"\",'Asset List'!I3)","v":"?"},{"$f":"IF('Asset List'!K3=\"\",\"\",'Asset List'!K3)","v":""},{"$f":"IF('Asset List'!R3=\"\",\"\",'Asset List'!R3)","v":"Since they have been their own TOP, they may want to maintain some functional operation consistant with what they do today. This will be determined as we work through the TOP requirement checklist."}]
[{"$f":"'Asset List'!B4","v":"Clark Public Utilities"},{"$f":"IF('Asset List'!E4=\"\",\"\",'Asset List'!E4)","v":"2. Alcoa - River Road - Fruit Valley Tap 115 kV"},{"$f":"IF('Asset List'!F4=\"\",\"\",'Asset List'!F4)","v":"Alcoa – River Road 115 kV,\nRiver Road - Fruit Valley Tap 115 kV"},{"$f":"IF('Asset List'!G4=\"\",\"\",'Asset List'!G4)","v":"River Road 115 kV"},{"$f":"IF('Asset List'!I4=\"\",\"\",'Asset List'!I4)","v":"?"},{"$f":"IF('Asset List'!K4=\"\",\"\",'Asset List'!K4)","v":""},{"$f":"IF('Asset List'!R4=\"\",\"\",'Asset List'!R4)","v":""}]
[{"$f":"'Asset List'!B5","v":"Clark Public Utilities"},{"$f":"IF('Asset List'!E5=\"\",\"\",'Asset List'!E5)","v":"3. Sifton 2 – Alcoa 115 kV"},{"$f":"IF('Asset List'!F5=\"\",\"\",'Asset List'!F5)","v":"Sifton 2 – 119th St. 115kV,\n119th St. – Cherry Grove 115kV,\nCherry Grove - Pioneer 115kV,\nPioneer- Alcoa 115 kV"},{"$f":"IF('Asset List'!G5=\"\",\"\",'Asset List'!G5)","v":"119th St. 115 kV,\nCherry Grove 115 kV,\nPioneer 115 kV"},{"$f":"IF('Asset List'!I5=\"\",\"\",'Asset List'!I5)","v":""},{"$f":"IF('Asset List'!K5=\"\",\"\",'Asset List'!K5)","v":""},{"$f":"IF('Asset List'!R5=\"\",\"\",'Asset List'!R5)","v":""}]
[{"$f":"'Asset List'!B6","v":"Clark Public Utilities"},{"$f":"IF('Asset List'!E6=\"\",\"\",'Asset List'!E6)","v":"4. Sifton 1 - Silicon - Sifton 3 115 kV"},{"$f":"IF('Asset List'!F6=\"\",\"\",'Asset List'!F6)","v":"Sifton 1 – Silicon 115kV,\nSilicon – Sifton 3 115kV"},{"$f":"IF('Asset List'!G6=\"\",\"\",'Asset List'!G6)","v":"Silicon 115 kV"},{"$f":"IF('Asset List'!I6=\"\",\"\",'Asset List'!I6)","v":"?"},{"$f":"IF('Asset List'!K6=\"\",\"\",'Asset List'!K6)","v":""},{"$f":"IF('Asset List'!R6=\"\",\"\",'Asset List'!R6)","v":""}]
[{"$f":"'Asset List'!B7","v":"Clark Public Utilities"},{"$f":"IF('Asset List'!E7=\"\",\"\",'Asset List'!E7)","v":"5.  Sifton 5 – Lacamas - Wafertech - Runyan - Ast -Sifton 4 115 kV"},{"$f":"IF('Asset List'!F7=\"\",\"\",'Asset List'!F7)","v":"Sifton 5 – Lacamas 115 kV,\nLacamas - Wafertech 115 kV,\nWafertech - Runyan 115 kV,\nRunyan - Joe Ast 115 kV,\nJoe Ast  - Sifton 4 115 kV"},{"$f":"IF('Asset List'!G7=\"\",\"\",'Asset List'!G7)","v":"Lacamas 115 kV,\nWafertech 115 kV,\nRunyan 115 kV,\nJoe Ast 115 kV"},{"$f":"IF('Asset List'!I7=\"\",\"\",'Asset List'!I7)","v":"?"},{"$f":"IF('Asset List'!K7=\"\",\"\",'Asset List'!K7)","v":""},{"$f":"IF('Asset List'!R7=\"\",\"\",'Asset List'!R7)","v":""}]
[{"$f":"'Asset List'!B8","v":"Clark Public Utilities"},{"$f":"IF('Asset List'!E8=\"\",\"\",'Asset List'!E8)","v":"6.  Runyan - Troutdale 115 kV"},{"$f":"IF('Asset List'!F8=\"\",\"\",'Asset List'!F8)","v":"Runyan - Troutdale 115 kV"},{"$f":"IF('Asset List'!G8=\"\",\"\",'Asset List'!G8)","v":""},{"$f":"IF('Asset List'!I8=\"\",\"\",'Asset List'!I8)","v":"?"},{"$f":"IF('Asset List'!K8=\"\",\"\",'Asset List'!K8)","v":""},{"$f":"IF('Asset List'!R8=\"\",\"\",'Asset List'!R8)","v":""}]
[{"$f":"'Asset List'!B9","v":"Clark Public Utilities"},{"$f":"IF('Asset List'!E9=\"\",\"\",'Asset List'!E9)","v":"7. North Camas 115 kV Substation"},{"$f":"IF('Asset List'!F9=\"\",\"\",'Asset List'!F9)","v":""},{"$f":"IF('Asset List'!G9=\"\",\"\",'Asset List'!G9)","v":"North Camas 115 kV"},{"$f":"IF('Asset List'!I9=\"\",\"\",'Asset List'!I9)","v":"?"},{"$f":"IF('Asset List'!K9=\"\",\"\",'Asset List'!K9)","v":""},{"$f":"IF('Asset List'!R9=\"\",\"\",'Asset List'!R9)","v":""}]
[{"$f":"'Asset List'!B10","v":"Cowlitz County PUD No. 1"},{"$f":"IF('Asset List'!E10=\"\",\"\",'Asset List'!E10)","v":"Lexington (BPA) - Shawnee (CPUD)"},{"$f":"IF('Asset List'!F10=\"\",\"\",'Asset List'!F10)","v":"Lexington - Shawnee 115kV"},{"$f":"IF('Asset List'!G10=\"\",\"\",'Asset List'!G10)","v":"Shawnee 115kV (CPUD)"},{"$f":"IF('Asset List'!I10=\"\",\"\",'Asset List'!I10)","v":""},{"$f":"IF('Asset List'!K10=\"\",\"\",'Asset List'!K10)","v":"115B1-LD (CPUD)"},{"$f":"IF('Asset List'!R10=\"\",\"\",'Asset List'!R10)","v":"No change to daily operations, except what would be required for BPA compliance "}]
[{"$f":"'Asset List'!B11","v":"Cowlitz County PUD No. 1"},{"$f":"IF('Asset List'!E11=\"\",\"\",'Asset List'!E11)","v":"Shawnee (CPUD) - East Kelso (CPUD)"},{"$f":"IF('Asset List'!F11=\"\",\"\",'Asset List'!F11)","v":"Shawnee - East Kelso 115kV"},{"$f":"IF('Asset List'!G11=\"\",\"\",'Asset List'!G11)","v":"Shawnee 115kV (CPUD),\nEast Kelso 115 kV (CPUD)"},{"$f":"IF('Asset List'!I11=\"\",\"\",'Asset List'!I11)","v":""},{"$f":"IF('Asset List'!K11=\"\",\"\",'Asset List'!K11)","v":"115B2-LD (CPUD),\n115B2-BD (CPUD),\n115k1-LD (CPUD),\n115k1-BD (CPUD)"},{"$f":"IF('Asset List'!R11=\"\",\"\",'Asset List'!R11)","v":""}]
[{"$f":"'Asset List'!B12","v":"Cowlitz County PUD No. 1"},{"$f":"IF('Asset List'!E12=\"\",\"\",'Asset List'!E12)","v":"East Kelso (CPUD) - Soucth Kelso (CPUD)"},{"$f":"IF('Asset List'!F12=\"\",\"\",'Asset List'!F12)","v":"East Kelso - South Kelso 115kV"},{"$f":"IF('Asset List'!G12=\"\",\"\",'Asset List'!G12)","v":"East Kelso 115kV (CPUD),\nSouth kelso 115kV (CPUD)"},{"$f":"IF('Asset List'!I12=\"\",\"\",'Asset List'!I12)","v":""},{"$f":"IF('Asset List'!K12=\"\",\"\",'Asset List'!K12)","v":"115K2-LD (CPUD),\n115K2-BD (CPUD),\n115SK3-BD (CPUD)"},{"$f":"IF('Asset List'!R12=\"\",\"\",'Asset List'!R12)","v":""}]
[{"$f":"'Asset List'!B13","v":"Cowlitz County PUD No. 1"},{"$f":"IF('Asset List'!E13=\"\",\"\",'Asset List'!E13)","v":"South Kelso (CPUD) - Carrolls (CPUD)"},{"$f":"IF('Asset List'!F13=\"\",\"\",'Asset List'!F13)","v":"South Kelso - Cardwell 115kV"},{"$f":"IF('Asset List'!G13=\"\",\"\",'Asset List'!G13)","v":"South Kelso 115kV (CPUD),\nCarrolls 115kV (CPUD)"},{"$f":"IF('Asset List'!I13=\"\",\"\",'Asset List'!I13)","v":""},{"$f":"IF('Asset List'!K13=\"\",\"\",'Asset List'!K13)","v":"115SK1-BED-BD (CPUD),\n115S1-LD (CPUD)"},{"$f":"IF('Asset List'!R13=\"\",\"\",'Asset List'!R13)","v":""}]
[{"$f":"'Asset List'!B14","v":"Cowlitz County PUD No. 1"},{"$f":"IF('Asset List'!E14=\"\",\"\",'Asset List'!E14)","v":"Carrolls (CPUD) - Cardwell (BPA)"},{"$f":"IF('Asset List'!F14=\"\",\"\",'Asset List'!F14)","v":"South Kelso - Cardwell 11 5kV"},{"$f":"IF('Asset List'!G14=\"\",\"\",'Asset List'!G14)","v":"Carrolls 115kV (CPUD)"},{"$f":"IF('Asset List'!I14=\"\",\"\",'Asset List'!I14)","v":""},{"$f":"IF('Asset List'!K14=\"\",\"\",'Asset List'!K14)","v":"115S2-LD (CPUD)"},{"$f":"IF('Asset List'!R14=\"\",\"\",'Asset List'!R14)","v":""}]
[{"$f":"'Asset List'!B15","v":"Cowlitz County PUD No. 1"},{"$f":"IF('Asset List'!E15=\"\",\"\",'Asset List'!E15)","v":"Longview (BPA) - Washington Way (CPUD)"},{"$f":"IF('Asset List'!F15=\"\",\"\",'Asset List'!F15)","v":""},{"$f":"IF('Asset List'!G15=\"\",\"\",'Asset List'!G15)","v":"Washington Way - 7th Ave 115kV  (CPUD)"},{"$f":"IF('Asset List'!I15=\"\",\"\",'Asset List'!I15)","v":""},{"$f":"IF('Asset List'!K15=\"\",\"\",'Asset List'!K15)","v":"115W1-LD (CPUD),\n115W1-BD (CPUD)"},{"$f":"IF('Asset List'!R15=\"\",\"\",'Asset List'!R15)","v":""}]
[{"$f":"'Asset List'!B16","v":"Cowlitz County PUD No. 1"},{"$f":"IF('Asset List'!E16=\"\",\"\",'Asset List'!E16)","v":"Washington Way (CPUD) - 7th Ave (CPUD)"},{"$f":"IF('Asset List'!F16=\"\",\"\",'Asset List'!F16)","v":"Washington Way - 7th Ave 115kV"},{"$f":"IF('Asset List'!G16=\"\",\"\",'Asset List'!G16)","v":"Washington Way - 7th Ave 115kV   (CPUD)"},{"$f":"IF('Asset List'!I16=\"\",\"\",'Asset List'!I16)","v":""},{"$f":"IF('Asset List'!K16=\"\",\"\",'Asset List'!K16)","v":"115W2-LD (CPUD),\n115W2-BD (CPUD),\n115H2-LD (CPUD),\n115H2-BD (CPUD"},{"$f":"IF('Asset List'!R16=\"\",\"\",'Asset List'!R16)","v":""}]
[{"$f":"'Asset List'!B17","v":"Cowlitz County PUD No. 1"},{"$f":"IF('Asset List'!E17=\"\",\"\",'Asset List'!E17)","v":"7th Ave (CPUD) - Cowlitz (BPA)"},{"$f":"IF('Asset List'!F17=\"\",\"\",'Asset List'!F17)","v":"7th Ave - Cowlitz 115kV"},{"$f":"IF('Asset List'!G17=\"\",\"\",'Asset List'!G17)","v":"7th Ave - Cowlitz 115kV (CPUD)"},{"$f":"IF('Asset List'!I17=\"\",\"\",'Asset List'!I17)","v":""},{"$f":"IF('Asset List'!K17=\"\",\"\",'Asset List'!K17)","v":"115H1-LD (CPUD),\n115H1-BD (CPUD,\n115C6 N.O. (CPUD) at Columbia Way"},{"$f":"IF('Asset List'!R17=\"\",\"\",'Asset List'!R17)","v":""}]
[{"$f":"'Asset List'!B18","v":"Cowlitz County PUD No. 1"},{"$f":"IF('Asset List'!E18=\"\",\"\",'Asset List'!E18)","v":"7th Ave (CPUD) - East Kelso (CPUD)"},{"$f":"IF('Asset List'!F18=\"\",\"\",'Asset List'!F18)","v":"7th Ave - East Kelso 115kV"},{"$f":"IF('Asset List'!G18=\"\",\"\",'Asset List'!G18)","v":"7th Ave 115kV (CPUD),\nEast Kelso 115kV (CPUD)"},{"$f":"IF('Asset List'!I18=\"\",\"\",'Asset List'!I18)","v":""},{"$f":"IF('Asset List'!K18=\"\",\"\",'Asset List'!K18)","v":"115H3-LD (CPUD),\n115H3-BD (CPUD),\n115K5-LD (CPUD),\n115K5-BD (CPUD)"},{"$f":"IF('Asset List'!R18=\"\",\"\",'Asset List'!R18)","v":""}]
[{"$f":"'Asset List'!B19","v":"Cowlitz County PUD No. 1"},{"$f":"IF('Asset List'!E19=\"\",\"\",'Asset List'!E19)","v":"Longview (BPA) - Mint Farm (CPUD)"},{"$f":"IF('Asset List'!F19=\"\",\"\",'Asset List'!F19)","v":"Longview - Mint Farm 115kV"},{"$f":"IF('Asset List'!G19=\"\",\"\",'Asset List'!G19)","v":"Mint Farm 115kV (CPUD"},{"$f":"IF('Asset List'!I19=\"\",\"\",'Asset List'!I19)","v":""},{"$f":"IF('Asset List'!K19=\"\",\"\",'Asset List'!K19)","v":"115MF1-LD (CPUD),\n115MF1-BD (CPUD)"},{"$f":"IF('Asset List'!R19=\"\",\"\",'Asset List'!R19)","v":""}]
[{"$f":"'Asset List'!B20","v":"Cowlitz County PUD No. 1"},{"$f":"IF('Asset List'!E20=\"\",\"\",'Asset List'!E20)","v":"Mint Farm (CPUD) - Olive Way (CPUD)"},{"$f":"IF('Asset List'!F20=\"\",\"\",'Asset List'!F20)","v":"Mint Farm - Olive Way 115kV"},{"$f":"IF('Asset List'!G20=\"\",\"\",'Asset List'!G20)","v":"Mint Farm 115kV (CPUD,\nOlive Way 115kV (CPUD)"},{"$f":"IF('Asset List'!I20=\"\",\"\",'Asset List'!I20)","v":""},{"$f":"IF('Asset List'!K20=\"\",\"\",'Asset List'!K20)","v":"115MF3-LD (CPUD),\n115MF3-BD (CPUD),\n115L2-LD (CPUD),\n115L2-BD (CPUD)"},{"$f":"IF('Asset List'!R20=\"\",\"\",'Asset List'!R20)","v":""}]
[{"$f":"'Asset List'!B21","v":"Cowlitz County PUD No. 1"},{"$f":"IF('Asset List'!E21=\"\",\"\",'Asset List'!E21)","v":"Olive Way (CPUD) - 20th & Ocean Beach (CPUD)"},{"$f":"IF('Asset List'!F21=\"\",\"\",'Asset List'!F21)","v":"Olive Way - 20th & Ocean Beach 115kV"},{"$f":"IF('Asset List'!G21=\"\",\"\",'Asset List'!G21)","v":"Olive Way 115kV (CPUD),\nOcean Beach 115kV (CPUD)"},{"$f":"IF('Asset List'!I21=\"\",\"\",'Asset List'!I21)","v":""},{"$f":"IF('Asset List'!K21=\"\",\"\",'Asset List'!K21)","v":"115E2-LD (CPUD),\n115E2-BD (CPUD),\n115J1-LD (CPUD),\n115J2-BD (CPUD)"},{"$f":"IF('Asset List'!R21=\"\",\"\",'Asset List'!R21)","v":""}]
[{"$f":"'Asset List'!B22","v":"Cowlitz County PUD No. 1"},{"$f":"IF('Asset List'!E22=\"\",\"\",'Asset List'!E22)","v":"20th & Ocean Beach (CPUD) - West Kelso (CPUD)"},{"$f":"IF('Asset List'!F22=\"\",\"\",'Asset List'!F22)","v":"20th & Ocean Beach - West Kelso 115kV"},{"$f":"IF('Asset List'!G22=\"\",\"\",'Asset List'!G22)","v":"20th & Ocean Beach 115kV (CPUD),\nWest Kelso 115kV (CPUD)"},{"$f":"IF('Asset List'!I22=\"\",\"\",'Asset List'!I22)","v":""},{"$f":"IF('Asset List'!K22=\"\",\"\",'Asset List'!K22)","v":"115E2-LD (CPUD),\n115E2-BD (CPUD),\n115J1-LD (CPUD),\n115J1-BD (CPUD)"},{"$f":"IF('Asset List'!R22=\"\",\"\",'Asset List'!R22)","v":""}]
[{"$f":"'Asset List'!B23","v":"Cowlitz County PUD No. 1"},{"$f":"IF('Asset List'!E23=\"\",\"\",'Asset List'!E23)","v":"West Kelso (CPUD) - East Kelso (CPUD)"},{"$f":"IF('Asset List'!F23=\"\",\"\",'Asset List'!F23)","v":"West Kelso - East Kelso 115kV"},{"$f":"IF('Asset List'!G23=\"\",\"\",'Asset List'!G23)","v":"West Kelso 115kV (CPUD),\nEast Kelso 115kV (CPUD)"},{"$f":"IF('Asset List'!I23=\"\",\"\",'Asset List'!I23)","v":""},{"$f":"IF('Asset List'!K23=\"\",\"\",'Asset List'!K23)","v":"115J3-LD (CPUD),\n115J3-BD (CPUD),\n115K6-LD (CPUD),\n115K6-BD (CPUD)"},{"$f":"IF('Asset List'!R23=\"\",\"\",'Asset List'!R23)","v":""}]
[{"$f":"'Asset List'!B24","v":"Cowlitz County PUD No. 1"},{"$f":"IF('Asset List'!E24=\"\",\"\",'Asset List'!E24)","v":"Bakers Corner Tap (CPUD) to Lexington - Longview #1 115kV Line (BPA)"},{"$f":"IF('Asset List'!F24=\"\",\"\",'Asset List'!F24)","v":"Bakers Corner Tap to Lexington - Longview #1 115kV"},{"$f":"IF('Asset List'!G24=\"\",\"\",'Asset List'!G24)","v":"Bakers Corner 115kV (CPUD)"},{"$f":"IF('Asset List'!I24=\"\",\"\",'Asset List'!I24)","v":""},{"$f":"IF('Asset List'!K24=\"\",\"\",'Asset List'!K24)","v":"115T2-LD (CPUD),\n115T2-BD (CPUD)"},{"$f":"IF('Asset List'!R24=\"\",\"\",'Asset List'!R24)","v":""}]
[{"$f":"'Asset List'!B25","v":"Cowlitz County PUD No. 1"},{"$f":"IF('Asset List'!E25=\"\",\"\",'Asset List'!E25)","v":"Bakers Corner (CPUD) - Olive Way (CPUD)"},{"$f":"IF('Asset List'!F25=\"\",\"\",'Asset List'!F25)","v":"Olive Way - Bakers Corner 115kV"},{"$f":"IF('Asset List'!G25=\"\",\"\",'Asset List'!G25)","v":"Bakers Corner 115kV (CPUD),\nOlive Way 115kV (CPUD)"},{"$f":"IF('Asset List'!I25=\"\",\"\",'Asset List'!I25)","v":""},{"$f":"IF('Asset List'!K25=\"\",\"\",'Asset List'!K25)","v":"115T3-LD (CPUD),\n115T3-BD (CPUD),\n115L6-LD (CPUD),\n115L6-BD (CPUD)"},{"$f":"IF('Asset List'!R25=\"\",\"\",'Asset List'!R25)","v":""}]
[{"$f":"'Asset List'!B26","v":"Cowlitz County PUD No. 1"},{"$f":"IF('Asset List'!E26=\"\",\"\",'Asset List'!E26)","v":"Pacific Way substation loop-in (CPUD) on Lexington - Longview #1 115kV line (BPA)"},{"$f":"IF('Asset List'!F26=\"\",\"\",'Asset List'!F26)","v":""},{"$f":"IF('Asset List'!G26=\"\",\"\",'Asset List'!G26)","v":"Pacific Way 115kV (CPUD)"},{"$f":"IF('Asset List'!I26=\"\",\"\",'Asset List'!I26)","v":""},{"$f":"IF('Asset List'!K26=\"\",\"\",'Asset List'!K26)","v":"115PW1-LD (CPUD),\n115PW2-LD (CPUD)"},{"$f":"IF('Asset List'!R26=\"\",\"\",'Asset List'!R26)","v":""}]
[{"$f":"'Asset List'!B27","v":"Grays Harbor County PUD No. 1 "},{"$f":"IF('Asset List'!E27=\"\",\"\",'Asset List'!E27)","v":"Cosmopolis- Aberdeen No.1 115 kV line"},{"$f":"IF('Asset List'!F27=\"\",\"\",'Asset List'!F27)","v":"Cosmopolis- Aberdeen No. 1 115kV Line (GH)"},{"$f":"IF('Asset List'!G27=\"\",\"\",'Asset List'!G27)","v":""},{"$f":"IF('Asset List'!I27=\"\",\"\",'Asset List'!I27)","v":""},{"$f":"IF('Asset List'!K27=\"\",\"\",'Asset List'!K27)","v":""},{"$f":"IF('Asset List'!R27=\"\",\"\",'Asset List'!R27)","v":"No change to daily operations, except what would be required for BPA compliance "}]
[{"$f":"'Asset List'!B28","v":"Grays Harbor County PUD No. 1 "},{"$f":"IF('Asset List'!E28=\"\",\"\",'Asset List'!E28)","v":"Olympia Substation to Cosmopolis Substation 115 kV"},{"$f":"IF('Asset List'!F28=\"\",\"\",'Asset List'!F28)","v":"Olympia-South EIma No. 1 115kV line (BPA)"},{"$f":"IF('Asset List'!G28=\"\",\"\",'Asset List'!G28)","v":"South EIma (GH)"},{"$f":"IF('Asset List'!I28=\"\",\"\",'Asset List'!I28)","v":""},{"$f":"IF('Asset List'!K28=\"\",\"\",'Asset List'!K28)","v":"2442 (GH)"},{"$f":"IF('Asset List'!R28=\"\",\"\",'Asset List'!R28)","v":""}]
[{"$f":"'Asset List'!B29","v":"Grays Harbor County PUD No. 1 "},{"$f":"IF('Asset List'!E29=\"\",\"\",'Asset List'!E29)","v":"OlympiaSubstation to Cosmopolis Substation 115 kV"},{"$f":"IF('Asset List'!F29=\"\",\"\",'Asset List'!F29)","v":"South Elma- Satsop Park No.1 115kV (BPA)"},{"$f":"IF('Asset List'!G29=\"\",\"\",'Asset List'!G29)","v":"Satsop Park (GH)"},{"$f":"IF('Asset List'!I29=\"\",\"\",'Asset List'!I29)","v":""},{"$f":"IF('Asset List'!K29=\"\",\"\",'Asset List'!K29)","v":"2447 (GH),\n2500 (GH),\n2510 (GH),\n2520 (GH)"},{"$f":"IF('Asset List'!R29=\"\",\"\",'Asset List'!R29)","v":""}]
[{"$f":"'Asset List'!B30","v":"Grays Harbor County PUD No. 1 "},{"$f":"IF('Asset List'!E30=\"\",\"\",'Asset List'!E30)","v":"Olympia Substation to Cosmopolis Substation 115 kV"},{"$f":"IF('Asset List'!F30=\"\",\"\",'Asset List'!F30)","v":"Satsop Park- Cosmopolis No.1 115kV (BPA)"},{"$f":"IF('Asset List'!G30=\"\",\"\",'Asset List'!G30)","v":""},{"$f":"IF('Asset List'!I30=\"\",\"\",'Asset List'!I30)","v":""},{"$f":"IF('Asset List'!K30=\"\",\"\",'Asset List'!K30)","v":"2530 (GH),\n2540 (GH),\n2550 (GH)"},{"$f":"IF('Asset List'!R30=\"\",\"\",'Asset List'!R30)","v":""}]
[{"$f":"'Asset List'!B31","v":"Klickitat County PUD No. 1 "},{"$f":"IF('Asset List'!E31=\"\",\"\",'Asset List'!E31)","v":"Harvalum\n– Linden Switchyard (KPUD)\n"},{"$f":"IF('Asset List'!F31=\"\",\"\",'Asset List'!F31)","v":"Harvalum – Linden Switchyard 230 kV line (KPUD)"},{"$f":"IF('Asset List'!G31=\"\",\"\",'Asset List'!G31)","v":"Linden Switchyard (LSY) 230 kV (KPUD)"},{"$f":"IF('Asset List'!I31=\"\",\"\",'Asset List'!I31)","v":""},{"$f":"IF('Asset List'!K31=\"\",\"\",'Asset List'!K31)","v":"LSY SW 230-1W (KPUD),\nLSY SW 230-2E (KPUD),\nLSY SW 230-2W (KPUD),\nLSY SW 230-3E (KPUD),\nLSY SW 230-3W (KPUD),\nLSY SW 230-4 (KPUD)\n"},{"$f":"IF('Asset List'!R31=\"\",\"\",'Asset List'!R31)","v":"No change to daily operations, except what would be required for BPA compliance "}]
[{"$f":"'Asset List'!B32","v":"Klickitat County PUD No. 1 "},{"$f":"IF('Asset List'!E32=\"\",\"\",'Asset List'!E32)","v":"Linden Switchyard (KPUD)\n– EE Clouse (KPUD)\n"},{"$f":"IF('Asset List'!F32=\"\",\"\",'Asset List'!F32)","v":"Linden Switchyard – EE Clouse 230 kV line (KPUD)"},{"$f":"IF('Asset List'!G32=\"\",\"\",'Asset List'!G32)","v":"EE Clouse (EEC) 230 kV (KPUD)"},{"$f":"IF('Asset List'!I32=\"\",\"\",'Asset List'!I32)","v":""},{"$f":"IF('Asset List'!K32=\"\",\"\",'Asset List'!K32)","v":"EEC SW 230-1W (KPUD),\nEEC SW 230-2E (KPUD),\nEEC SW 230-1E (KPUD),\nEEC SW 230-2W (KPUD)\n"},{"$f":"IF('Asset List'!R32=\"\",\"\",'Asset List'!R32)","v":""}]
[{"$f":"'Asset List'!B33","v":"Klickitat County PUD No. 1 "},{"$f":"IF('Asset List'!E33=\"\",\"\",'Asset List'!E33)","v":"Rock Creek  – White Creek (KPUD)"},{"$f":"IF('Asset List'!F33=\"\",\"\",'Asset List'!F33)","v":"Rock Creek – White Creek 230 kV line (KPUD)"},{"$f":"IF('Asset List'!G33=\"\",\"\",'Asset List'!G33)","v":"White Creek (WCR) 230 kV (KPUD),\nWhite Creek (WCR) 34.5kV (KPUD)\n"},{"$f":"IF('Asset List'!I33=\"\",\"\",'Asset List'!I33)","v":""},{"$f":"IF('Asset List'!K33=\"\",\"\",'Asset List'!K33)","v":"WCR SW 230-0W (KPUD),\nWCR SW 230-3S (KPUD),\nWCR SW 230-4N (KPUD),\nWCR SW 230-1S (KPUD),\nWCR SW 230-6N (KPUD)\n"},{"$f":"IF('Asset List'!R33=\"\",\"\",'Asset List'!R33)","v":""}]
[{"$f":"'Asset List'!B34","v":"Klickitat County PUD No. 1 "},{"$f":"IF('Asset List'!E34=\"\",\"\",'Asset List'!E34)","v":"White Creek (KPUD) – Harvest Wind (KPUD)"},{"$f":"IF('Asset List'!F34=\"\",\"\",'Asset List'!F34)","v":"White Creek – Harvest Wind 230 kV line (KPUD)"},{"$f":"IF('Asset List'!G34=\"\",\"\",'Asset List'!G34)","v":"Harvest Wind (HVW) 230 kV (KPUD)"},{"$f":"IF('Asset List'!I34=\"\",\"\",'Asset List'!I34)","v":""},{"$f":"IF('Asset List'!K34=\"\",\"\",'Asset List'!K34)","v":"HVW SW 230-1N (KPUD)"},{"$f":"IF('Asset List'!R34=\"\",\"\",'Asset List'!R34)","v":""}]
[{"$f":"'Asset List'!B35","v":"Klickitat County PUD No. 1 "},{"$f":"IF('Asset List'!E35=\"\",\"\",'Asset List'!E35)","v":"Rock Creek - Energizer (KPUD)"},{"$f":"IF('Asset List'!F35=\"\",\"\",'Asset List'!F35)","v":"Rock Creek – Energizer 230 kV line (KPUD) "},{"$f":"IF('Asset List'!G35=\"\",\"\",'Asset List'!G35)","v":"Energizer (ENR) 230 kV (KPUD)"},{"$f":"IF('Asset List'!I35=\"\",\"\",'Asset List'!I35)","v":""},{"$f":"IF('Asset List'!K35=\"\",\"\",'Asset List'!K35)","v":"ENR SW 230-2N (KPUD),\nENR SW 230-1S (KPUD),\nENR SW 230-3W (KPUD)"},{"$f":"IF('Asset List'!R35=\"\",\"\",'Asset List'!R35)","v":""}]
[{"$f":"'Asset List'!B36","v":"Klickitat County PUD No. 1 "},{"$f":"IF('Asset List'!E36=\"\",\"\",'Asset List'!E36)","v":"Energizer (KPUD) – Willis (KPUD)"},{"$f":"IF('Asset List'!F36=\"\",\"\",'Asset List'!F36)","v":"Energizer – Willis 230 kV line (KPUD)"},{"$f":"IF('Asset List'!G36=\"\",\"\",'Asset List'!G36)","v":"Willis (WLS) 230 kV (KPUD)"},{"$f":"IF('Asset List'!I36=\"\",\"\",'Asset List'!I36)","v":""},{"$f":"IF('Asset List'!K36=\"\",\"\",'Asset List'!K36)","v":"WLS SW 230-2N (KPUD),\nWLS SW 230-1S (KPUD),\nWLS SW 230-3W (KPUD)"},{"$f":"IF('Asset List'!R36=\"\",\"\",'Asset List'!R36)","v":"No change to daily operations, except what would be required for BPA compliance "}]
[{"$f":"'Asset List'!B37","v":"Klickitat County PUD No. 1 "},{"$f":"IF('Asset List'!E37=\"\",\"\",'Asset List'!E37)","v":"Willis (KPUD)- Dooley (KPUD)"},{"$f":"IF('Asset List'!F37=\"\",\"\",'Asset List'!F37)","v":"Willis  – Dooley 230 kV line (KPUD)"},{"$f":"IF('Asset List'!G37=\"\",\"\",'Asset List'!G37)","v":"Dooley (DLY) 230 kV (WPP)"},{"$f":"IF('Asset List'!I37=\"\",\"\",'Asset List'!I37)","v":""},{"$f":"IF('Asset List'!K37=\"\",\"\",'Asset List'!K37)","v":"DLY SW 230-1N (KPUD),\nDLY SW 230-3N (WPP),\nDLY SW 230-4N (WPP)"},{"$f":"IF('Asset List'!R37=\"\",\"\",'Asset List'!R37)","v":""}]
[{"$f":"'Asset List'!B38","v":"Lewis County PUD No. 1"},{"$f":"IF('Asset List'!E38=\"\",\"\",'Asset List'!E38)","v":"Cowlitz Falls-Glenoma (LCPUD)"},{"$f":"IF('Asset List'!F38=\"\",\"\",'Asset List'!F38)","v":"Cowlitz Falls-Glenoma (LCPUD)"},{"$f":"IF('Asset List'!G38=\"\",\"\",'Asset List'!G38)","v":"Cowlitz Falls 230 kV (LCPUD)"},{"$f":"IF('Asset List'!I38=\"\",\"\",'Asset List'!I38)","v":""},{"$f":"IF('Asset List'!K38=\"\",\"\",'Asset List'!K38)","v":"230-36, 230-34, 230-37 (LCPUD), 189-1, 189-2, 189-3 (LCPUD)"},{"$f":"IF('Asset List'!R38=\"\",\"\",'Asset List'!R38)","v":""}]
[{"$f":"'Asset List'!B39","v":"Lewis County PUD No. 1"},{"$f":"IF('Asset List'!E39=\"\",\"\",'Asset List'!E39)","v":"Glenoma-Mossyrock (LCPUD)"},{"$f":"IF('Asset List'!F39=\"\",\"\",'Asset List'!F39)","v":"Glenoma-Mossyrock (LCPUD)"},{"$f":"IF('Asset List'!G39=\"\",\"\",'Asset List'!G39)","v":"Glenoma 230 kV (LCPUD)"},{"$f":"IF('Asset List'!I39=\"\",\"\",'Asset List'!I39)","v":""},{"$f":"IF('Asset List'!K39=\"\",\"\",'Asset List'!K39)","v":"230-10M (LCPUD), 230-30, 230-32, 230-37 (LCPUD)"},{"$f":"IF('Asset List'!R39=\"\",\"\",'Asset List'!R39)","v":"No change to daily operations, except what would be required for BPA compliance "}]
[{"$f":"'Asset List'!B40","v":"Lower Valley Energy"},{"$f":"IF('Asset List'!E40=\"\",\"\",'Asset List'!E40)","v":"Palisades – Snake River 115 kV"},{"$f":"IF('Asset List'!F40=\"\",\"\",'Asset List'!F40)","v":"Palisades – Snake River 115 kV (LVE)"},{"$f":"IF('Asset List'!G40=\"\",\"\",'Asset List'!G40)","v":"Snake River 115 kV (LVE)\n"},{"$f":"IF('Asset List'!I40=\"\",\"\",'Asset List'!I40)","v":""},{"$f":"IF('Asset List'!K40=\"\",\"\",'Asset List'!K40)","v":"SP721 (LVE), SP722 (LVE),\n761 (USBR),\n763 (USBR)\n"},{"$f":"IF('Asset List'!R40=\"\",\"\",'Asset List'!R40)","v":""}]
[{"$f":"'Asset List'!B41","v":"Lower Valley Energy"},{"$f":"IF('Asset List'!E41=\"\",\"\",'Asset List'!E41)","v":"Snake River – Tincup 115 kV\n(LVE)"},{"$f":"IF('Asset List'!F41=\"\",\"\",'Asset List'!F41)","v":"Snake River – Tincup 115 kV (LVE)"},{"$f":"IF('Asset List'!G41=\"\",\"\",'Asset List'!G41)","v":"Tincup 115 kV (LVE)"},{"$f":"IF('Asset List'!I41=\"\",\"\",'Asset List'!I41)","v":""},{"$f":"IF('Asset List'!K41=\"\",\"\",'Asset List'!K41)","v":"TS725 (LVE), T724 (LVE),\nST725 (LVE),  ST727 (LVE)\n"},{"$f":"IF('Asset List'!R41=\"\",\"\",'Asset List'!R41)","v":""}]
[{"$f":"'Asset List'!B42","v":"Lower Valley Energy"},{"$f":"IF('Asset List'!E42=\"\",\"\",'Asset List'!E42)","v":"Snake River – Dry Creek 115 kV\n(LVE)"},{"$f":"IF('Asset List'!F42=\"\",\"\",'Asset List'!F42)","v":"Snake River – Freedom115 kV (LVE)"},{"$f":"IF('Asset List'!G42=\"\",\"\",'Asset List'!G42)","v":"Dry Creek 115 kV (LVE)"},{"$f":"IF('Asset List'!I42=\"\",\"\",'Asset List'!I42)","v":""},{"$f":"IF('Asset List'!K42=\"\",\"\",'Asset List'!K42)","v":"DF827 (LVE),\nDF828 (LVE),\nF725,\nFS721,\nSF730 (LVE),\nSF731 (LVE),\nF726,\nFD722,\nFS723,\nFD724"},{"$f":"IF('Asset List'!R42=\"\",\"\",'Asset List'!R42)","v":""}]
[{"$f":"'Asset List'!B43","v":"Lower Valley Energy"},{"$f":"IF('Asset List'!E43=\"\",\"\",'Asset List'!E43)","v":"Dry Creek – Tincup 115 kV (LVE)"},{"$f":"IF('Asset List'!F43=\"\",\"\",'Asset List'!F43)","v":"Dry Creek – Valley 115 kV (LVE)"},{"$f":"IF('Asset List'!G43=\"\",\"\",'Asset List'!G43)","v":""},{"$f":"IF('Asset List'!I43=\"\",\"\",'Asset List'!I43)","v":""},{"$f":"IF('Asset List'!K43=\"\",\"\",'Asset List'!K43)","v":"TL730 (LVE),\nTL731 (LVE),\nDV730 (LVE),\nDV731 (LVE),\nVD881,\nVL882,\nLV824,\nL823,\nLV821"},{"$f":"IF('Asset List'!R43=\"\",\"\",'Asset List'!R43)","v":""}]
[{"$f":"'Asset List'!B44","v":"Lower Valley Energy"},{"$f":"IF('Asset List'!E44=\"\",\"\",'Asset List'!E44)","v":"Snake River – Jackson 115 kV (LVE)"},{"$f":"IF('Asset List'!F44=\"\",\"\",'Asset List'!F44)","v":"Snake River – Hoback 115 kV (LVE)"},{"$f":"IF('Asset List'!G44=\"\",\"\",'Asset List'!G44)","v":"Jackson 115 kV (LVE)\n"},{"$f":"IF('Asset List'!I44=\"\",\"\",'Asset List'!I44)","v":""},{"$f":"IF('Asset List'!K44=\"\",\"\",'Asset List'!K44)","v":"JR727 (LVE),\nJR728 (LVE),\nHS782,\nSH723 (LVE),\nSH724 (LVE),\nHR781,\nRH721,\nRJ722"},{"$f":"IF('Asset List'!R44=\"\",\"\",'Asset List'!R44)","v":""}]
[{"$f":"'Asset List'!B45","v":"Lower Valley Energy"},{"$f":"IF('Asset List'!E45=\"\",\"\",'Asset List'!E45)","v":"Jackson – Teton 115 kV (LVE)"},{"$f":"IF('Asset List'!F45=\"\",\"\",'Asset List'!F45)","v":"Jackson - Wilson  115 kV (LVE)"},{"$f":"IF('Asset List'!G45=\"\",\"\",'Asset List'!G45)","v":" "},{"$f":"IF('Asset List'!I45=\"\",\"\",'Asset List'!I45)","v":""},{"$f":"IF('Asset List'!K45=\"\",\"\",'Asset List'!K45)","v":"7494,\nJW723 (LVE),\nJW724 (LVE),\nWJ722,\nWT721"},{"$f":"IF('Asset List'!R45=\"\",\"\",'Asset List'!R45)","v":""}]
[{"$f":"'Asset List'!B46","v":"Lower Valley Energy"},{"$f":"IF('Asset List'!E46=\"\",\"\",'Asset List'!E46)","v":"Jackson – East Jackson 115 kV (LVE)"},{"$f":"IF('Asset List'!F46=\"\",\"\",'Asset List'!F46)","v":"Jackson – East Jackson 115 kV (LVE)"},{"$f":"IF('Asset List'!G46=\"\",\"\",'Asset List'!G46)","v":"E. Jackson 115 kV (LVE)\n"},{"$f":"IF('Asset List'!I46=\"\",\"\",'Asset List'!I46)","v":""},{"$f":"IF('Asset List'!K46=\"\",\"\",'Asset List'!K46)","v":"EJ728 (LVE),\nEJ729 (LVE),\nJE721 (LVE),\nJE722 (LVE)"},{"$f":"IF('Asset List'!R46=\"\",\"\",'Asset List'!R46)","v":""}]
[{"$f":"'Asset List'!B47","v":"Lower Valley Energy"},{"$f":"IF('Asset List'!E47=\"\",\"\",'Asset List'!E47)","v":"East Jackson – Teton 115 kV"},{"$f":"IF('Asset List'!F47=\"\",\"\",'Asset List'!F47)","v":"East Jackson – Crystal 115 kV (LVE)"},{"$f":"IF('Asset List'!G47=\"\",\"\",'Asset List'!G47)","v":" "},{"$f":"IF('Asset List'!I47=\"\",\"\",'Asset List'!I47)","v":""},{"$f":"IF('Asset List'!K47=\"\",\"\",'Asset List'!K47)","v":"7580,\nEC721 (LVE),\nEC722 (LVE),\nCT723,\nCE722"},{"$f":"IF('Asset List'!R47=\"\",\"\",'Asset List'!R47)","v":""}]
[{"$f":"'Asset List'!B48","v":"Northern Wasco "},{"$f":"IF('Asset List'!E48=\"\",\"\",'Asset List'!E48)","v":"Big Eddy- The Dalles No 1 115kV line"},{"$f":"IF('Asset List'!F48=\"\",\"\",'Asset List'!F48)","v":"Second Street –The Dalles Substation 115kV Line Segment (NWasco)"},{"$f":"IF('Asset List'!G48=\"\",\"\",'Asset List'!G48)","v":""},{"$f":"IF('Asset List'!I48=\"\",\"\",'Asset List'!I48)","v":""},{"$f":"IF('Asset List'!K48=\"\",\"\",'Asset List'!K48)","v":"2K-14 \nThe Dalles side Disconnect 115kV  (NWasco),\n2K-12\nSecond Street Transformer No. 1  Disconnect 115kV  (NWasco)\n"},{"$f":"IF('Asset List'!R48=\"\",\"\",'Asset List'!R48)","v":""}]
[{"$f":"'Asset List'!B49","v":"Northern Wasco "},{"$f":"IF('Asset List'!E49=\"\",\"\",'Asset List'!E49)","v":"Big Eddy- The Dalles No 1 115kV line"},{"$f":"IF('Asset List'!F49=\"\",\"\",'Asset List'!F49)","v":" Big Eddy – Seufert 115kV Line Segment (NWasco)"},{"$f":"IF('Asset List'!G49=\"\",\"\",'Asset List'!G49)","v":"Seufert (NWasco)"},{"$f":"IF('Asset List'!I49=\"\",\"\",'Asset List'!I49)","v":""},{"$f":"IF('Asset List'!K49=\"\",\"\",'Asset List'!K49)","v":"2K-22  \nBig Eddy Line Side Disconnect 115kV  (NWasco),\n2K-3 \nSeufert Transformer Disconnect 115kV  (NWasco)"},{"$f":"IF('Asset List'!R49=\"\",\"\",'Asset List'!R49)","v":""}]
[{"$f":"'Asset List'!B50","v":"Northern Wasco "},{"$f":"IF('Asset List'!E50=\"\",\"\",'Asset List'!E50)","v":"Big Eddy- The Dalles No 1 115kV line"},{"$f":"IF('Asset List'!F50=\"\",\"\",'Asset List'!F50)","v":"Seufert - Columbia Heights 115kV Line Segment (NWasco)"},{"$f":"IF('Asset List'!G50=\"\",\"\",'Asset List'!G50)","v":"Col. Heights (NWasco)"},{"$f":"IF('Asset List'!I50=\"\",\"\",'Asset List'!I50)","v":""},{"$f":"IF('Asset List'!K50=\"\",\"\",'Asset List'!K50)","v":"2K-17\nSeufert Line Side  Disconnect 115kV  (NWasco),\n2K-505\nSeufert Line Side Disconnect grounding Switch 115kV  (NWasco),\n2K-18\nSeufert Line Side Tap Disconnect 115kV  (NWasco),\n2K-19\nColumbia Heights Transformer Disconnect 115kV  (NWasco),\n2K-23  \nColumbia Heights Line Side Disconnect 115kV  (NWasco)"},{"$f":"IF('Asset List'!R50=\"\",\"\",'Asset List'!R50)","v":""}]
[{"$f":"'Asset List'!B51","v":"Northern Wasco "},{"$f":"IF('Asset List'!E51=\"\",\"\",'Asset List'!E51)","v":"Big Eddy- The Dalles No 1 115kV line"},{"$f":"IF('Asset List'!F51=\"\",\"\",'Asset List'!F51)","v":"Columbia Heights – Three Mile Tap   115kV Line Tap\n(NWasco)"},{"$f":"IF('Asset List'!G51=\"\",\"\",'Asset List'!G51)","v":""},{"$f":"IF('Asset List'!I51=\"\",\"\",'Asset List'!I51)","v":""},{"$f":"IF('Asset List'!K51=\"\",\"\",'Asset List'!K51)","v":"2K-25 \nColumbia Heights Line Side Disconnect 115kV (NWasco), \n2K-27 \nThree Mile Tap Disconnect 115kV (NWasco), \n2K-16\nThree Mile Tap  Side Disconnect 115kV  (NWasco), \n2K-500\nThree Mile Tap  Side Disconnect grounding Switch 115kV (NWasco)  \n"},{"$f":"IF('Asset List'!R51=\"\",\"\",'Asset List'!R51)","v":""}]
[{"$f":"'Asset List'!B52","v":"Northern Wasco "},{"$f":"IF('Asset List'!E52=\"\",\"\",'Asset List'!E52)","v":"Big Eddy- The Dalles No 1 115kV line"},{"$f":"IF('Asset List'!F52=\"\",\"\",'Asset List'!F52)","v":"Three Mile Tap –2nd Street   115kV Line Tap (NWasco)\n"},{"$f":"IF('Asset List'!G52=\"\",\"\",'Asset List'!G52)","v":"2nd Street (N. Wasco)"},{"$f":"IF('Asset List'!I52=\"\",\"\",'Asset List'!I52)","v":""},{"$f":"IF('Asset List'!K52=\"\",\"\",'Asset List'!K52)","v":"2K-13\nThree Mile Tap Structure Line Side Disconnect (Motor Operated) 115kV (NWasco), \n2K-504\nThree Mile Tap  Side Disconnect grounding Switch 115kV (NWasco), \n2K-11\nSecond Street Transformer No. 2 Disconnect 115kV (NWasco),\n2K-26 \nSecond Street Line Side Disconnect 115kV (NWasco)  \n"},{"$f":"IF('Asset List'!R52=\"\",\"\",'Asset List'!R52)","v":"No change to daily operations, except what would be required for BPA compliance "}]
[{"$f":"'Asset List'!B53","v":"Okanogan County PUD No. 1"},{"$f":"IF('Asset List'!E53=\"\",\"\",'Asset List'!E53)","v":"Brewster (OKPUD) – Foster Creek (DCPUD)"},{"$f":"IF('Asset List'!F53=\"\",\"\",'Asset List'!F53)","v":"Brewster – Foster Creek (DCPUD) 115 kV line (OKPUD)"},{"$f":"IF('Asset List'!G53=\"\",\"\",'Asset List'!G53)","v":"Brewster 115 kV (OKPUD)"},{"$f":"IF('Asset List'!I53=\"\",\"\",'Asset List'!I53)","v":""},{"$f":"IF('Asset List'!K53=\"\",\"\",'Asset List'!K53)","v":"T-52 MBD ABD LSD,\n5271,\n5273,\nB-1295 (OKPUD)\n\n5271,\n5273\n"},{"$f":"IF('Asset List'!R53=\"\",\"\",'Asset List'!R53)","v":"No change to daily operations, except what would be required for BPA compliance "}]
[{"$f":"'Asset List'!B54","v":"Okanogan County PUD No. 1"},{"$f":"IF('Asset List'!E54=\"\",\"\",'Asset List'!E54)","v":"Brewster (OKPUD) – Okanogan (OKPUD)"},{"$f":"IF('Asset List'!F54=\"\",\"\",'Asset List'!F54)","v":"Brewster-Ophir 115 kV (OKPUD)"},{"$f":"IF('Asset List'!G54=\"\",\"\",'Asset List'!G54)","v":"Okanogan 115kV (OKPUD)"},{"$f":"IF('Asset List'!I54=\"\",\"\",'Asset List'!I54)","v":""},{"$f":"IF('Asset List'!K54=\"\",\"\",'Asset List'!K54)","v":"B-1482 MBD ABD LSD,\nT-51 MBD ABD LSD,\nB-453 (Ophir Tap),\nOphir-Okanogan 115 kV line (OKPUD),\nB-455 (Ophir Tap)\n"},{"$f":"IF('Asset List'!R54=\"\",\"\",'Asset List'!R54)","v":""}]
[{"$f":"'Asset List'!B55","v":"Okanogan County PUD No. 1"},{"$f":"IF('Asset List'!E55=\"\",\"\",'Asset List'!E55)","v":"Okanogan (OKDPUD) – Twisp (OKPUD"},{"$f":"IF('Asset List'!F55=\"\",\"\",'Asset List'!F55)","v":"Okanogan – Twisp 115kV line (OKPUD)"},{"$f":"IF('Asset List'!G55=\"\",\"\",'Asset List'!G55)","v":"Twisp 115kV\n"},{"$f":"IF('Asset List'!I55=\"\",\"\",'Asset List'!I55)","v":""},{"$f":"IF('Asset List'!K55=\"\",\"\",'Asset List'!K55)","v":"TW-TS-4,\nTW-TS-5,\nTW-TS-6,\nB-1486 MBD ABD LSD,\nT-103 (Malott Tap),\nT-106 (Malott Tap),\nB-103 (Winthrop Tap – BPA),"},{"$f":"IF('Asset List'!R55=\"\",\"\",'Asset List'!R55)","v":""}]
[{"$f":"'Asset List'!B56","v":"Okanogan County PUD No. 1"},{"$f":"IF('Asset List'!E56=\"\",\"\",'Asset List'!E56)","v":"Brewster (OKPUD) –  Twisp (OKPUD)"},{"$f":"IF('Asset List'!F56=\"\",\"\",'Asset List'!F56)","v":"Brewster – Pateros 115 kV line (OKPUD)"},{"$f":"IF('Asset List'!G56=\"\",\"\",'Asset List'!G56)","v":"\n"},{"$f":"IF('Asset List'!I56=\"\",\"\",'Asset List'!I56)","v":""},{"$f":"IF('Asset List'!K56=\"\",\"\",'Asset List'!K56)","v":"TW-TS-7,\nTW-TS-8,\nTW-TS-9,\nT-111 (Pateros Tap),\nPateros-Twisp 115 kV line (OKPUD),\nT-112 (Pateros Tap),\nT-113 (Pateros Tap),\nT-53 MBD ABD LSD"},{"$f":"IF('Asset List'!R56=\"\",\"\",'Asset List'!R56)","v":""}]
[{"$f":"'Asset List'!B57","v":"Okanogan County PUD No. 1"},{"$f":"IF('Asset List'!E57=\"\",\"\",'Asset List'!E57)","v":"Okanogan (OKPUD) – East Omak (BPA)"},{"$f":"IF('Asset List'!F57=\"\",\"\",'Asset List'!F57)","v":"Okanogan – CIPV 115 kV line (OKPUD)"},{"$f":"IF('Asset List'!G57=\"\",\"\",'Asset List'!G57)","v":""},{"$f":"IF('Asset List'!I57=\"\",\"\",'Asset List'!I57)","v":""},{"$f":"IF('Asset List'!K57=\"\",\"\",'Asset List'!K57)","v":"B77 MBD ABD LSD,\nB-1488 MBD ABD LSD,\nB-1480 MBD ABD LSD, \nT-090 (CIPV Tap),\nCIPV – Sandflat 115 kV line (OKPUD),\nT-091 (CIPV Tap),\nT-119 (Sandflat Tap),\nSandflat - East Omak 115 kV line (OKPUD),\nT-121 (Sandflat Tap),\nT-120 (Sandflat Tap)\n"},{"$f":"IF('Asset List'!R57=\"\",\"\",'Asset List'!R57)","v":""}]
[{"$f":"'Asset List'!B58","v":"Pend Oreille County PUD No. 1"},{"$f":"IF('Asset List'!E58=\"\",\"\",'Asset List'!E58)","v":"Box Canyon tap to Colville – Boundary No 1 115kV line (POPD)"},{"$f":"IF('Asset List'!F58=\"\",\"\",'Asset List'!F58)","v":"Box Canyon tap 115kV line"},{"$f":"IF('Asset List'!G58=\"\",\"\",'Asset List'!G58)","v":"Box Canyon Substation 115kV (POPD)"},{"$f":"IF('Asset List'!I58=\"\",\"\",'Asset List'!I58)","v":""},{"$f":"IF('Asset List'!K58=\"\",\"\",'Asset List'!K58)","v":"PB6451 (POPD),\nPB6453 (POPD),\nPB6455 (POPD)\n"},{"$f":"IF('Asset List'!R58=\"\",\"\",'Asset List'!R58)","v":""}]
[{"$f":"'Asset List'!B59","v":"Pend Oreille County PUD No. 1"},{"$f":"IF('Asset List'!E59=\"\",\"\",'Asset List'!E59)","v":"Box Canyon Substation\n(POPD) – Usk Switchyard (POPD)"},{"$f":"IF('Asset List'!F59=\"\",\"\",'Asset List'!F59)","v":"Box Canyon – Usk 115kV line"},{"$f":"IF('Asset List'!G59=\"\",\"\",'Asset List'!G59)","v":"Usk Switchyard 115kV (POPD)"},{"$f":"IF('Asset List'!I59=\"\",\"\",'Asset List'!I59)","v":""},{"$f":"IF('Asset List'!K59=\"\",\"\",'Asset List'!K59)","v":"PU6551 (POPD),\nPU6553 (POPD),\nPU6555 (POPD),\nPB6151 (POPD),\nPB6153 (POPD),\nPB6251 (POPD),\nPB6253 (POPD),\nPB6351 (POPD),\nPB6353 (POPD)"},{"$f":"IF('Asset List'!R59=\"\",\"\",'Asset List'!R59)","v":"Since they have been their own TOP, they may want to maintain some functional operation consistant with what they do today. This will be determined as we work through the TOP requirement checklist."}]
[{"$f":"'Asset List'!B60","v":"Pend Oreille County PUD No. 1"},{"$f":"IF('Asset List'!E60=\"\",\"\",'Asset List'!E60)","v":"Usk Switchyard (POPD) – Usk Substation (BPA)"},{"$f":"IF('Asset List'!F60=\"\",\"\",'Asset List'!F60)","v":"Usk – Usk\n115kV line"},{"$f":"IF('Asset List'!G60=\"\",\"\",'Asset List'!G60)","v":"Usk Substation 115kV (POPD), Usk Substation 230kV (POPUD)"},{"$f":"IF('Asset List'!I60=\"\",\"\",'Asset List'!I60)","v":""},{"$f":"IF('Asset List'!K60=\"\",\"\",'Asset List'!K60)","v":"PU62252 (POPD),\nPU82052 (POPD),\nA960 (POPD),\nPU6550 (POPD)"},{"$f":"IF('Asset List'!R60=\"\",\"\",'Asset List'!R60)","v":""}]
[{"$f":"'Asset List'!B61","v":"Pend Oreille County PUD No. 1"},{"$f":"IF('Asset List'!E61=\"\",\"\",'Asset List'!E61)","v":"Usk Switchyard (POPD) – Pine Street (POPD)"},{"$f":"IF('Asset List'!F61=\"\",\"\",'Asset List'!F61)","v":"Usk – Pine Street 115kV line"},{"$f":"IF('Asset List'!G61=\"\",\"\",'Asset List'!G61)","v":"Pine Street Substation 115kV (POPD)"},{"$f":"IF('Asset List'!I61=\"\",\"\",'Asset List'!I61)","v":""},{"$f":"IF('Asset List'!K61=\"\",\"\",'Asset List'!K61)","v":"PP6651 (POPD),\nPP6653 (POPD),\nPP6751 (POPD),\nPP6753 (POPD),\nPP6851 (POPD),\nPP6853 (POPD),\nPP6951 (POPD),\nPP6953 (POPD),\nPU6651 (POPD),\nPU6653 (POPD)"},{"$f":"IF('Asset List'!R61=\"\",\"\",'Asset List'!R61)","v":""}]
[{"$f":"'Asset List'!B62","v":"Umatilla Electric Cooperative "},{"$f":"IF('Asset List'!E62=\"\",\"\",'Asset List'!E62)","v":"McNary - Hermiston Generating Company 230 kV"},{"$f":"IF('Asset List'!F62=\"\",\"\",'Asset List'!F62)","v":"McNary-Hermiston Generating Plant 230kV"},{"$f":"IF('Asset List'!G62=\"\",\"\",'Asset List'!G62)","v":""},{"$f":"IF('Asset List'!I62=\"\",\"\",'Asset List'!I62)","v":""},{"$f":"IF('Asset List'!K62=\"\",\"\",'Asset List'!K62)","v":""},{"$f":"IF('Asset List'!R62=\"\",\"\",'Asset List'!R62)","v":"No change to daily operations, except what would be required for BPA compliance "}]
[{"$f":"'Asset List'!B63","v":"Whatcom County PUD No. 1 "},{"$f":"IF('Asset List'!E63=\"\",\"\",'Asset List'!E63)","v":"Bellingham (BPA) - Refinery (Whatcom) 115kV"},{"$f":"IF('Asset List'!F63=\"\",\"\",'Asset List'!F63)","v":"Bellingham (BPA) - Refinery 115kV Line (Whatcom)"},{"$f":"IF('Asset List'!G63=\"\",\"\",'Asset List'!G63)","v":"Refinery 115kV (Whatcom)"},{"$f":"IF('Asset List'!I63=\"\",\"\",'Asset List'!I63)","v":""},{"$f":"IF('Asset List'!K63=\"\",\"\",'Asset List'!K63)","v":"5504 (Whatcom),\n5505 (Whatcom),\n5517 (Whatcom),\n5518 (Whatcom),\n5519 (Whatcom), \n5520 (Whatcom),\n5521 (Whatcom), \n5522 (Whatcom),\n5523 (Whatcom), \n5524 (Whatcom)"},{"$f":"IF('Asset List'!R63=\"\",\"\",'Asset List'!R63)","v":""}]
[{"$f":"'Asset List'!B64","v":"Benton County PUD No. 1 "},{"$f":"IF('Asset List'!E64=\"\",\"\",'Asset List'!E64)","v":" "},{"$f":"IF('Asset List'!F64=\"\",\"\",'Asset List'!F64)","v":""},{"$f":"IF('Asset List'!G64=\"\",\"\",'Asset List'!G64)","v":""},{"$f":"IF('Asset List'!I64=\"\",\"\",'Asset List'!I64)","v":""},{"$f":"IF('Asset List'!K64=\"\",\"\",'Asset List'!K64)","v":""},{"$f":"IF('Asset List'!R64=\"\",\"\",'Asset List'!R64)","v":""}]
[{"$f":"'Asset List'!B65","v":"Consumers Power, Inc. "},{"$f":"IF('Asset List'!E65=\"\",\"\",'Asset List'!E65)","v":"1.    Harrisburg - Greenberry (CPI) "},{"$f":"IF('Asset List'!F65=\"\",\"\",'Asset List'!F65)","v":""},{"$f":"IF('Asset List'!G65=\"\",\"\",'Asset List'!G65)","v":""},{"$f":"IF('Asset List'!I65=\"\",\"\",'Asset List'!I65)","v":""},{"$f":"IF('Asset List'!K65=\"\",\"\",'Asset List'!K65)","v":""},{"$f":"IF('Asset List'!R65=\"\",\"\",'Asset List'!R65)","v":""}]
[{"$f":"'Asset List'!B66","v":"Consumers Power, Inc. "},{"$f":"IF('Asset List'!E66=\"\",\"\",'Asset List'!E66)","v":"2.   Airport Substation (Albany-Lebanon No. "},{"$f":"IF('Asset List'!F66=\"\",\"\",'Asset List'!F66)","v":""},{"$f":"IF('Asset List'!G66=\"\",\"\",'Asset List'!G66)","v":"Airport 115kV"},{"$f":"IF('Asset List'!I66=\"\",\"\",'Asset List'!I66)","v":""},{"$f":"IF('Asset List'!K66=\"\",\"\",'Asset List'!K66)","v":"Two future breakers,"},{"$f":"IF('Asset List'!R66=\"\",\"\",'Asset List'!R66)","v":""}]
[{"$f":"'Asset List'!B67","v":"Eugene Water and Electric Board"},{"$f":"IF('Asset List'!E67=\"\",\"\",'Asset List'!E67)","v":"1. Willakenzie - McKenzie - Coburg - River Loop - Spring Creek - Irvington - Prairie 115 kV"},{"$f":"IF('Asset List'!F67=\"\",\"\",'Asset List'!F67)","v":"Willakenzie - McKenzie 115kV,\nMcKenzie - Coburg 115kV,\nCoburg - Spring Creek 115kV,\nSpring Creek - Irving tap 115kV"},{"$f":"IF('Asset List'!G67=\"\",\"\",'Asset List'!G67)","v":"McKenzie 115kV,\nSpring Creek 115kV,\nCoburg 115kV"},{"$f":"IF('Asset List'!I67=\"\",\"\",'Asset List'!I67)","v":""},{"$f":"IF('Asset List'!K67=\"\",\"\",'Asset List'!K67)","v":9},{"$f":"IF('Asset List'!R67=\"\",\"\",'Asset List'!R67)","v":""}]
[{"$f":"'Asset List'!B68","v":"Eugene Water and Electric Board"},{"$f":"IF('Asset List'!E68=\"\",\"\",'Asset List'!E68)","v":"2. Prairie - Jessen - Danebo  - Lane (BPA) 115 kV"},{"$f":"IF('Asset List'!F68=\"\",\"\",'Asset List'!F68)","v":"Prairie - Jessen 115kV,\nJessen - Danebo 115kV,\nDanebo  - Lane (BPA) 115kV"},{"$f":"IF('Asset List'!G68=\"\",\"\",'Asset List'!G68)","v":"Prairie 115kV,\nJessen 115kV,\nDanebo 115kV"},{"$f":"IF('Asset List'!I68=\"\",\"\",'Asset List'!I68)","v":""},{"$f":"IF('Asset List'!K68=\"\",\"\",'Asset List'!K68)","v":5},{"$f":"IF('Asset List'!R68=\"\",\"\",'Asset List'!R68)","v":""}]
[{"$f":"'Asset List'!B69","v":"Eugene Water and Electric Board"},{"$f":"IF('Asset List'!E69=\"\",\"\",'Asset List'!E69)","v":"3. Lane (BPA) - Crow - Willow Creek - Hundai - Westmoreland 115 kV"},{"$f":"IF('Asset List'!F69=\"\",\"\",'Asset List'!F69)","v":"Westmoreland - Willow Creek 115kV,\nWillow Creek-Hundai #1,\nWillow Creek-Hundai #2,\nWillow Creek - Lane (BPA)"},{"$f":"IF('Asset List'!G69=\"\",\"\",'Asset List'!G69)","v":"Willow Creek 115kV,\nHundai 115kV"},{"$f":"IF('Asset List'!I69=\"\",\"\",'Asset List'!I69)","v":""},{"$f":"IF('Asset List'!K69=\"\",\"\",'Asset List'!K69)","v":5},{"$f":"IF('Asset List'!R69=\"\",\"\",'Asset List'!R69)","v":""}]
[{"$f":"'Asset List'!B70","v":"Eugene Water and Electric Board"},{"$f":"IF('Asset List'!E70=\"\",\"\",'Asset List'!E70)","v":"4. Westmoreland - Seneca - Eugene (BPA) 115 kV"},{"$f":"IF('Asset List'!F70=\"\",\"\",'Asset List'!F70)","v":"Westmoreland - Seneca 115kV,\nSeneca - Bertelson 115kV"},{"$f":"IF('Asset List'!G70=\"\",\"\",'Asset List'!G70)","v":"Seneca 115,\nBertelson 115"},{"$f":"IF('Asset List'!I70=\"\",\"\",'Asset List'!I70)","v":""},{"$f":"IF('Asset List'!K70=\"\",\"\",'Asset List'!K70)","v":5},{"$f":"IF('Asset List'!R70=\"\",\"\",'Asset List'!R70)","v":""}]
[{"$f":"'Asset List'!B71","v":"Eugene Water and Electric Board"},{"$f":"IF('Asset List'!E71=\"\",\"\",'Asset List'!E71)","v":"5. Currin - Willakenzie - Cal Young - Santa Clara - Prairie 115 kV"},{"$f":"IF('Asset List'!F71=\"\",\"\",'Asset List'!F71)","v":"Currin - Willakenzie 115kV,\nWillakenzie - Cal Young 115kV,\nCal Young - Santa Clara 115kV, \nSanta Clara - Prairie 115kV"},{"$f":"IF('Asset List'!G71=\"\",\"\",'Asset List'!G71)","v":"Willakenzie 115kV,\nCal Young 115kV,\nSanta Clara 115kV"},{"$f":"IF('Asset List'!I71=\"\",\"\",'Asset List'!I71)","v":""},{"$f":"IF('Asset List'!K71=\"\",\"\",'Asset List'!K71)","v":8},{"$f":"IF('Asset List'!R71=\"\",\"\",'Asset List'!R71)","v":""}]
[{"$f":"'Asset List'!B72","v":"Eugene Water and Electric Board"},{"$f":"IF('Asset List'!E72=\"\",\"\",'Asset List'!E72)","v":"6. Currin - Bloomburg - Goshen - Alvey (BPA) 115 kV"},{"$f":"IF('Asset List'!F72=\"\",\"\",'Asset List'!F72)","v":"Currin - Alvey (BPA) 115kV"},{"$f":"IF('Asset List'!G72=\"\",\"\",'Asset List'!G72)","v":"Currin 115kV"},{"$f":"IF('Asset List'!I72=\"\",\"\",'Asset List'!I72)","v":""},{"$f":"IF('Asset List'!K72=\"\",\"\",'Asset List'!K72)","v":1},{"$f":"IF('Asset List'!R72=\"\",\"\",'Asset List'!R72)","v":""}]
[{"$f":"'Asset List'!B73","v":"Eugene Water and Electric Board"},{"$f":"IF('Asset List'!E73=\"\",\"\",'Asset List'!E73)","v":"7. Curren - Laurel - Hilyard - Monroe - Dillard - Jefferson - Westmoreland 115 kV"},{"$f":"IF('Asset List'!F73=\"\",\"\",'Asset List'!F73)","v":"Currin - Laurel 115kV,\nLaurel - Hilyard 115kV,\nHillyard - Dillard 115kV,\nHilyard - Monroe 115kV,\nMonroe - Jefferson 115kV,\nJefferson - Westmoreland 115kV"},{"$f":"IF('Asset List'!G73=\"\",\"\",'Asset List'!G73)","v":"Laurel 115kV,\nDillard 115kV,\nHilyard 115kV,\nMonroe 115kV,\nJefferson 115kV,\nWestmoreland 115kV"},{"$f":"IF('Asset List'!I73=\"\",\"\",'Asset List'!I73)","v":""},{"$f":"IF('Asset List'!K73=\"\",\"\",'Asset List'!K73)","v":8},{"$f":"IF('Asset List'!R73=\"\",\"\",'Asset List'!R73)","v":""}]
[{"$f":"'Asset List'!B74","v":"Eugene Water and Electric Board"},{"$f":"IF('Asset List'!E74=\"\",\"\",'Asset List'!E74)","v":"8. Currin - Willamette - Adams - Bethel - Eugene (BPA) 115 kV"},{"$f":"IF('Asset List'!F74=\"\",\"\",'Asset List'!F74)","v":"Currin - Willamette 115kV,\nWillamette - University 115kV,\nUniversity - Adams 115kV,\nAdams - Bethel 115kV,\nBethel - Eugene (BPA) 115kV"},{"$f":"IF('Asset List'!G74=\"\",\"\",'Asset List'!G74)","v":"Willamete 115kV, \nUniversity 115kV,\nAdams 115kV, \nBethel 115kV"},{"$f":"IF('Asset List'!I74=\"\",\"\",'Asset List'!I74)","v":""},{"$f":"IF('Asset List'!K74=\"\",\"\",'Asset List'!K74)","v":11},{"$f":"IF('Asset List'!R74=\"\",\"\",'Asset List'!R74)","v":""}]
[{"$f":"'Asset List'!B75","v":"Eugene Water and Electric Board"},{"$f":"IF('Asset List'!E75=\"\",\"\",'Asset List'!E75)","v":"9. Willamette Tap - Oakway - Delta - River Road - Eugene (BPA) 115 kV"},{"$f":"IF('Asset List'!F75=\"\",\"\",'Asset List'!F75)","v":"Willamette Tap  - Oakway 115kV,\nOakway - Delta 115kV,\nDelta - River Road 115kV,\nRiver Road - Eugene (BPA)115kV"},{"$f":"IF('Asset List'!G75=\"\",\"\",'Asset List'!G75)","v":"Oakway 115kV,\nDelta 115kV,\nRiverRoad 115kV"},{"$f":"IF('Asset List'!I75=\"\",\"\",'Asset List'!I75)","v":""},{"$f":"IF('Asset List'!K75=\"\",\"\",'Asset List'!K75)","v":""},{"$f":"IF('Asset List'!R75=\"\",\"\",'Asset List'!R75)","v":""}]
[{"$f":"'Asset List'!B76","v":"Eugene Water and Electric Board"},{"$f":"IF('Asset List'!E76=\"\",\"\",'Asset List'!E76)","v":"10. Currin - Hayden Bridge Switching Station -  Weyerhaeuser No. 3 - Weyerhaeuser No. 1 - Weyerhaeuser No. 2 - Thurston 115 kV"},{"$f":"IF('Asset List'!F76=\"\",\"\",'Asset List'!F76)","v":"Currin  - Hayden Bridge Switching Station 115 kV,\nHayden Bridge Switching Station - Weyerhaeuser No. 3 115 kV,\nWeyerhaeuser No. 3 - Weyerhaeuser No. 1 115 kV,\nWeyerhaeuser No. 1 -Weyerhaeuser No. 2 115 kV,\n Weyerhaeuser No. 2  - Thurston 115 kV"},{"$f":"IF('Asset List'!G76=\"\",\"\",'Asset List'!G76)","v":"Hayden Bridge Switching Station 115kV,\nWeyerhaeuser No. 3 115kV,\nWeyerhaeuser No. 1 115kV,\nWeyerhaeuser No. 2 115 kV,\nThurston "},{"$f":"IF('Asset List'!I76=\"\",\"\",'Asset List'!I76)","v":""},{"$f":"IF('Asset List'!K76=\"\",\"\",'Asset List'!K76)","v":6},{"$f":"IF('Asset List'!R76=\"\",\"\",'Asset List'!R76)","v":""}]
[{"$f":"'Asset List'!B77","v":"Oregon Trail Electric Coop."},{"$f":"IF('Asset List'!E77=\"\",\"\",'Asset List'!E77)","v":"1.    Hines – West John Day - Quartz 138 kV"},{"$f":"IF('Asset List'!F77=\"\",\"\",'Asset List'!F77)","v":"Hines-Quartz 138 kV "},{"$f":"IF('Asset List'!G77=\"\",\"\",'Asset List'!G77)","v":""},{"$f":"IF('Asset List'!I77=\"\",\"\",'Asset List'!I77)","v":""},{"$f":"IF('Asset List'!K77=\"\",\"\",'Asset List'!K77)","v":""},{"$f":"IF('Asset List'!R77=\"\",\"\",'Asset List'!R77)","v":"OTEC is currently pursuing TOP Services from Idaho Power, not BPA. Further, the only item inventoried for TOP is leased to BPA so we wouldn't charge them for its operation."}]
[{"$f":"'Asset List'!B78","v":"Snohomish County PUD"},{"$f":"IF('Asset List'!E78=\"\",\"\",'Asset List'!E78)","v":"1. Murray - East Arlington 115 kV"},{"$f":"IF('Asset List'!F78=\"\",\"\",'Asset List'!F78)","v":"Murray - East Arlington 115 kV"},{"$f":"IF('Asset List'!G78=\"\",\"\",'Asset List'!G78)","v":""},{"$f":"IF('Asset List'!I78=\"\",\"\",'Asset List'!I78)","v":""},{"$f":"IF('Asset List'!K78=\"\",\"\",'Asset List'!K78)","v":"?"},{"$f":"IF('Asset List'!R78=\"\",\"\",'Asset List'!R78)","v":""}]
[{"$f":"'Asset List'!B79","v":"Snohomish County PUD"},{"$f":"IF('Asset List'!E79=\"\",\"\",'Asset List'!E79)","v":"2. East Arlington- Stimson Crossing 115 kV"},{"$f":"IF('Asset List'!F79=\"\",\"\",'Asset List'!F79)","v":"East Arlington- Stimson Crossing"},{"$f":"IF('Asset List'!G79=\"\",\"\",'Asset List'!G79)","v":""},{"$f":"IF('Asset List'!I79=\"\",\"\",'Asset List'!I79)","v":""},{"$f":"IF('Asset List'!K79=\"\",\"\",'Asset List'!K79)","v":"?"},{"$f":"IF('Asset List'!R79=\"\",\"\",'Asset List'!R79)","v":""}]
[{"$f":"'Asset List'!B80","v":"Snohomish County PUD"},{"$f":"IF('Asset List'!E80=\"\",\"\",'Asset List'!E80)","v":"3. Stimson Crossing - N. Stanwood-Lake Goodwin- Camano Sub 115 kV"},{"$f":"IF('Asset List'!F80=\"\",\"\",'Asset List'!F80)","v":"Stanwood-Lake Goodwin,\nLake Goodwin - Camano Sub"},{"$f":"IF('Asset List'!G80=\"\",\"\",'Asset List'!G80)","v":"Lake Goodwin"},{"$f":"IF('Asset List'!I80=\"\",\"\",'Asset List'!I80)","v":""},{"$f":"IF('Asset List'!K80=\"\",\"\",'Asset List'!K80)","v":"?"},{"$f":"IF('Asset List'!R80=\"\",\"\",'Asset List'!R80)","v":""}]
[{"$f":"'Asset List'!B81","v":"Snohomish County PUD"},{"$f":"IF('Asset List'!E81=\"\",\"\",'Asset List'!E81)","v":"4. Murray-Smokey Pt - Stimson Crossing 115 kV"},{"$f":"IF('Asset List'!F81=\"\",\"\",'Asset List'!F81)","v":"Murray-Smokey Pt ,\nSmokey Pt - Stimson Crossing"},{"$f":"IF('Asset List'!G81=\"\",\"\",'Asset List'!G81)","v":"Smokey Pt"},{"$f":"IF('Asset List'!I81=\"\",\"\",'Asset List'!I81)","v":""},{"$f":"IF('Asset List'!K81=\"\",\"\",'Asset List'!K81)","v":"?"},{"$f":"IF('Asset List'!R81=\"\",\"\",'Asset List'!R81)","v":""}]
[{"$f":"'Asset List'!B82","v":"Snohomish County PUD"},{"$f":"IF('Asset List'!E82=\"\",\"\",'Asset List'!E82)","v":"5. Stimson Crossing -N. Marysville-Delta 115 kV"},{"$f":"IF('Asset List'!F82=\"\",\"\",'Asset List'!F82)","v":"Marysville-Delta"},{"$f":"IF('Asset List'!G82=\"\",\"\",'Asset List'!G82)","v":""},{"$f":"IF('Asset List'!I82=\"\",\"\",'Asset List'!I82)","v":""},{"$f":"IF('Asset List'!K82=\"\",\"\",'Asset List'!K82)","v":"?"},{"$f":"IF('Asset List'!R82=\"\",\"\",'Asset List'!R82)","v":""}]
[{"$f":"'Asset List'!B83","v":"Snohomish County PUD"},{"$f":"IF('Asset List'!E83=\"\",\"\",'Asset List'!E83)","v":"6. Murray - Granite Tap - Lake Stevens-Snohomish 115 kV"},{"$f":"IF('Asset List'!F83=\"\",\"\",'Asset List'!F83)","v":"Murray - Granite Tap - Lake Stevens,\n Lake Stevens -Snohomish"},{"$f":"IF('Asset List'!G83=\"\",\"\",'Asset List'!G83)","v":"Granite Tap"},{"$f":"IF('Asset List'!I83=\"\",\"\",'Asset List'!I83)","v":""},{"$f":"IF('Asset List'!K83=\"\",\"\",'Asset List'!K83)","v":"?"},{"$f":"IF('Asset List'!R83=\"\",\"\",'Asset List'!R83)","v":""}]
[{"$f":"'Asset List'!B84","v":"Snohomish County PUD"},{"$f":"IF('Asset List'!E84=\"\",\"\",'Asset List'!E84)","v":"7. Delta-Tulalip- Stimsons Crossing 115 kV"},{"$f":"IF('Asset List'!F84=\"\",\"\",'Asset List'!F84)","v":"Delta-Tulalip- Stimsons Crossing"},{"$f":"IF('Asset List'!G84=\"\",\"\",'Asset List'!G84)","v":"Tulalip"},{"$f":"IF('Asset List'!I84=\"\",\"\",'Asset List'!I84)","v":""},{"$f":"IF('Asset List'!K84=\"\",\"\",'Asset List'!K84)","v":"?"},{"$f":"IF('Asset List'!R84=\"\",\"\",'Asset List'!R84)","v":""}]
[{"$f":"'Asset List'!B85","v":"Snohomish County PUD"},{"$f":"IF('Asset List'!E85=\"\",\"\",'Asset List'!E85)","v":"9. BPA Snohomish-Beverly Park #3 (S-BP#3) 115 kV"},{"$f":"IF('Asset List'!F85=\"\",\"\",'Asset List'!F85)","v":"BPA Snohomish-Beverly Park #3 (S-BP#3)"},{"$f":"IF('Asset List'!G85=\"\",\"\",'Asset List'!G85)","v":""},{"$f":"IF('Asset List'!I85=\"\",\"\",'Asset List'!I85)","v":""},{"$f":"IF('Asset List'!K85=\"\",\"\",'Asset List'!K85)","v":"?"},{"$f":"IF('Asset List'!R85=\"\",\"\",'Asset List'!R85)","v":""}]
[{"$f":"'Asset List'!B86","v":"Snohomish County PUD"},{"$f":"IF('Asset List'!E86=\"\",\"\",'Asset List'!E86)","v":"10. Beverly Park - Casino - Paine Field 115 kV"},{"$f":"IF('Asset List'!F86=\"\",\"\",'Asset List'!F86)","v":"Beverly Park - Casino,\nCasino - Paine Field"},{"$f":"IF('Asset List'!G86=\"\",\"\",'Asset List'!G86)","v":"Casino"},{"$f":"IF('Asset List'!I86=\"\",\"\",'Asset List'!I86)","v":""},{"$f":"IF('Asset List'!K86=\"\",\"\",'Asset List'!K86)","v":"?"},{"$f":"IF('Asset List'!R86=\"\",\"\",'Asset List'!R86)","v":""}]
[{"$f":"'Asset List'!B87","v":"Snohomish County PUD"},{"$f":"IF('Asset List'!E87=\"\",\"\",'Asset List'!E87)","v":"11. Paine Field - Boeing Sub 115 kV"},{"$f":"IF('Asset List'!F87=\"\",\"\",'Asset List'!F87)","v":"Paine Field - Boeing Sub"},{"$f":"IF('Asset List'!G87=\"\",\"\",'Asset List'!G87)","v":""},{"$f":"IF('Asset List'!I87=\"\",\"\",'Asset List'!I87)","v":""},{"$f":"IF('Asset List'!K87=\"\",\"\",'Asset List'!K87)","v":"?"},{"$f":"IF('Asset List'!R87=\"\",\"\",'Asset List'!R87)","v":""}]
[{"$f":"'Asset List'!B88","v":"Snohomish County PUD"},{"$f":"IF('Asset List'!E88=\"\",\"\",'Asset List'!E88)","v":"12. Paine Field - Lake Serene-Halls Lake 115 kV"},{"$f":"IF('Asset List'!F88=\"\",\"\",'Asset List'!F88)","v":"Paine Field - Lake Serene,\nLake Serene-Halls Lake"},{"$f":"IF('Asset List'!G88=\"\",\"\",'Asset List'!G88)","v":"Lake Serene"},{"$f":"IF('Asset List'!I88=\"\",\"\",'Asset List'!I88)","v":""},{"$f":"IF('Asset List'!K88=\"\",\"\",'Asset List'!K88)","v":"?"},{"$f":"IF('Asset List'!R88=\"\",\"\",'Asset List'!R88)","v":""}]
[{"$f":"'Asset List'!B89","v":"Snohomish County PUD"},{"$f":"IF('Asset List'!E89=\"\",\"\",'Asset List'!E89)","v":"13. BPA Snohomish-Fobes-Delta 115 kV"},{"$f":"IF('Asset List'!F89=\"\",\"\",'Asset List'!F89)","v":"BPA Snohomish-Fobes,\nFobes-Delta"},{"$f":"IF('Asset List'!G89=\"\",\"\",'Asset List'!G89)","v":"Fobes"},{"$f":"IF('Asset List'!I89=\"\",\"\",'Asset List'!I89)","v":""},{"$f":"IF('Asset List'!K89=\"\",\"\",'Asset List'!K89)","v":"?"},{"$f":"IF('Asset List'!R89=\"\",\"\",'Asset List'!R89)","v":""}]
[{"$f":"'Asset List'!B90","v":"Snohomish County PUD"},{"$f":"IF('Asset List'!E90=\"\",\"\",'Asset List'!E90)","v":"14. Delta - Navy Sub 115 kV"},{"$f":"IF('Asset List'!F90=\"\",\"\",'Asset List'!F90)","v":"Delta - Navy Sub"},{"$f":"IF('Asset List'!G90=\"\",\"\",'Asset List'!G90)","v":""},{"$f":"IF('Asset List'!I90=\"\",\"\",'Asset List'!I90)","v":""},{"$f":"IF('Asset List'!K90=\"\",\"\",'Asset List'!K90)","v":"?"},{"$f":"IF('Asset List'!R90=\"\",\"\",'Asset List'!R90)","v":""}]
[{"$f":"'Asset List'!B91","v":"Snohomish County PUD"},{"$f":"IF('Asset List'!E91=\"\",\"\",'Asset List'!E91)","v":"15. Scott - Everett - Navy 115 kV"},{"$f":"IF('Asset List'!F91=\"\",\"\",'Asset List'!F91)","v":"Scott - Everett,\nEverett - Navy"},{"$f":"IF('Asset List'!G91=\"\",\"\",'Asset List'!G91)","v":"Everett"},{"$f":"IF('Asset List'!I91=\"\",\"\",'Asset List'!I91)","v":""},{"$f":"IF('Asset List'!K91=\"\",\"\",'Asset List'!K91)","v":"?"},{"$f":"IF('Asset List'!R91=\"\",\"\",'Asset List'!R91)","v":""}]
[{"$f":"'Asset List'!B92","v":"Snohomish County PUD"},{"$f":"IF('Asset List'!E92=\"\",\"\",'Asset List'!E92)","v":"16. BPA Snohomish-Everett 115 kV"},{"$f":"IF('Asset List'!F92=\"\",\"\",'Asset List'!F92)","v":"BPA Snohomish-Everett"},{"$f":"IF('Asset List'!G92=\"\",\"\",'Asset List'!G92)","v":""},{"$f":"IF('Asset List'!I92=\"\",\"\",'Asset List'!I92)","v":""},{"$f":"IF('Asset List'!K92=\"\",\"\",'Asset List'!K92)","v":"?"},{"$f":"IF('Asset List'!R92=\"\",\"\",'Asset List'!R92)","v":""}]
[{"$f":"'Asset List'!B93","v":"Snohomish County PUD"},{"$f":"IF('Asset List'!E93=\"\",\"\",'Asset List'!E93)","v":"17. Scott - Waterfront - Snohomish 115 kV"},{"$f":"IF('Asset List'!F93=\"\",\"\",'Asset List'!F93)","v":"Scott - Waterfront,\nWaterfront - Snohomish"},{"$f":"IF('Asset List'!G93=\"\",\"\",'Asset List'!G93)","v":"Waterfront"},{"$f":"IF('Asset List'!I93=\"\",\"\",'Asset List'!I93)","v":""},{"$f":"IF('Asset List'!K93=\"\",\"\",'Asset List'!K93)","v":"?"},{"$f":"IF('Asset List'!R93=\"\",\"\",'Asset List'!R93)","v":""}]
[{"$f":"'Asset List'!B94","v":"Snohomish County PUD"},{"$f":"IF('Asset List'!E94=\"\",\"\",'Asset List'!E94)","v":"18. BPA Snohomish-Olivia - Paine Field 115 kV"},{"$f":"IF('Asset List'!F94=\"\",\"\",'Asset List'!F94)","v":"BPA Snohomish-Olivia,\nOlivia - Paine Field"},{"$f":"IF('Asset List'!G94=\"\",\"\",'Asset List'!G94)","v":"Olivia"},{"$f":"IF('Asset List'!I94=\"\",\"\",'Asset List'!I94)","v":""},{"$f":"IF('Asset List'!K94=\"\",\"\",'Asset List'!K94)","v":"?"},{"$f":"IF('Asset List'!R94=\"\",\"\",'Asset List'!R94)","v":""}]
[{"$f":"'Asset List'!B95","v":"Snohomish County PUD"},{"$f":"IF('Asset List'!E95=\"\",\"\",'Asset List'!E95)","v":"19. Beverly Park - Swamp Creek - Snoking 115 kV"},{"$f":"IF('Asset List'!F95=\"\",\"\",'Asset List'!F95)","v":"Beverly Park - Swamp Creek,\nSwamp Creek - Snoking"},{"$f":"IF('Asset List'!G95=\"\",\"\",'Asset List'!G95)","v":"Swamp Creek"},{"$f":"IF('Asset List'!I95=\"\",\"\",'Asset List'!I95)","v":""},{"$f":"IF('Asset List'!K95=\"\",\"\",'Asset List'!K95)","v":"?"},{"$f":"IF('Asset List'!R95=\"\",\"\",'Asset List'!R95)","v":""}]
[{"$f":"'Asset List'!B96","v":"Snohomish County PUD"},{"$f":"IF('Asset List'!E96=\"\",\"\",'Asset List'!E96)","v":"20. BPA Snohomish - Boeing Sub 115 kV"},{"$f":"IF('Asset List'!F96=\"\",\"\",'Asset List'!F96)","v":"BPA Snohomish - Boeing Sub"},{"$f":"IF('Asset List'!G96=\"\",\"\",'Asset List'!G96)","v":""},{"$f":"IF('Asset List'!I96=\"\",\"\",'Asset List'!I96)","v":""},{"$f":"IF('Asset List'!K96=\"\",\"\",'Asset List'!K96)","v":"?"},{"$f":"IF('Asset List'!R96=\"\",\"\",'Asset List'!R96)","v":""}]
[{"$f":"'Asset List'!B97","v":"Snohomish County PUD"},{"$f":"IF('Asset List'!E97=\"\",\"\",'Asset List'!E97)","v":"21. Boeing Sub - 20th Avenue Sub 115 kV"},{"$f":"IF('Asset List'!F97=\"\",\"\",'Asset List'!F97)","v":"Boeing Sub - 20th Avenue Sub"},{"$f":"IF('Asset List'!G97=\"\",\"\",'Asset List'!G97)","v":""},{"$f":"IF('Asset List'!I97=\"\",\"\",'Asset List'!I97)","v":""},{"$f":"IF('Asset List'!K97=\"\",\"\",'Asset List'!K97)","v":"?"},{"$f":"IF('Asset List'!R97=\"\",\"\",'Asset List'!R97)","v":""}]
[{"$f":"'Asset List'!B98","v":"Snohomish County PUD"},{"$f":"IF('Asset List'!E98=\"\",\"\",'Asset List'!E98)","v":"22. BPA Snohomish-JHP-Snohomish 115 kV"},{"$f":"IF('Asset List'!F98=\"\",\"\",'Asset List'!F98)","v":"BPA Snohomish-JHP,\nJHP-Snohomish"},{"$f":"IF('Asset List'!G98=\"\",\"\",'Asset List'!G98)","v":"JHP"},{"$f":"IF('Asset List'!I98=\"\",\"\",'Asset List'!I98)","v":""},{"$f":"IF('Asset List'!K98=\"\",\"\",'Asset List'!K98)","v":"?"},{"$f":"IF('Asset List'!R98=\"\",\"\",'Asset List'!R98)","v":""}]
[{"$f":"'Asset List'!B99","v":"Snohomish County PUD"},{"$f":"IF('Asset List'!E99=\"\",\"\",'Asset List'!E99)","v":"23. Halls Lake Sub - Ballinger - Westgate 115 kV"},{"$f":"IF('Asset List'!F99=\"\",\"\",'Asset List'!F99)","v":"Halls Lake Sub - Ballinger,\nBallinger - Westgate"},{"$f":"IF('Asset List'!G99=\"\",\"\",'Asset List'!G99)","v":"Ballinger"},{"$f":"IF('Asset List'!I99=\"\",\"\",'Asset List'!I99)","v":""},{"$f":"IF('Asset List'!K99=\"\",\"\",'Asset List'!K99)","v":"?"},{"$f":"IF('Asset List'!R99=\"\",\"\",'Asset List'!R99)","v":""}]
[{"$f":"'Asset List'!B100","v":"Snohomish County PUD"},{"$f":"IF('Asset List'!E100=\"\",\"\",'Asset List'!E100)","v":"24. Halls Lake Sub - 5 Corners - Lynnwood 115 kV"},{"$f":"IF('Asset List'!F100=\"\",\"\",'Asset List'!F100)","v":"Halls Lake Sub - 5 Corners,\n5 Corners - Lynnwood"},{"$f":"IF('Asset List'!G100=\"\",\"\",'Asset List'!G100)","v":" 5 Corners"},{"$f":"IF('Asset List'!I100=\"\",\"\",'Asset List'!I100)","v":""},{"$f":"IF('Asset List'!K100=\"\",\"\",'Asset List'!K100)","v":"?"},{"$f":"IF('Asset List'!R100=\"\",\"\",'Asset List'!R100)","v":""}]
[{"$f":"'Asset List'!B101","v":"Snohomish County PUD"},{"$f":"IF('Asset List'!E101=\"\",\"\",'Asset List'!E101)","v":"25. Snoking - Thrashers Corner- Halls Lake Sub 115 kV"},{"$f":"IF('Asset List'!F101=\"\",\"\",'Asset List'!F101)","v":"Snoking - Thrashers Corner,\nThrashers Corner - Halls Lake Sub"},{"$f":"IF('Asset List'!G101=\"\",\"\",'Asset List'!G101)","v":"Thrashers Corner"},{"$f":"IF('Asset List'!I101=\"\",\"\",'Asset List'!I101)","v":""},{"$f":"IF('Asset List'!K101=\"\",\"\",'Asset List'!K101)","v":"?"},{"$f":"IF('Asset List'!R101=\"\",\"\",'Asset List'!R101)","v":""}]
[{"$f":"'Asset List'!B102","v":"Snohomish County PUD"},{"$f":"IF('Asset List'!E102=\"\",\"\",'Asset List'!E102)","v":"26. Snoking - Canyon Park Sub - Halls Lake Sub 115 kV"},{"$f":"IF('Asset List'!F102=\"\",\"\",'Asset List'!F102)","v":"Snoking - Canyon Park Sub,\nCanyon Park Sub - Halls Lake Sub"},{"$f":"IF('Asset List'!G102=\"\",\"\",'Asset List'!G102)","v":"Canyon Park Sub"},{"$f":"IF('Asset List'!I102=\"\",\"\",'Asset List'!I102)","v":""},{"$f":"IF('Asset List'!K102=\"\",\"\",'Asset List'!K102)","v":"?"},{"$f":"IF('Asset List'!R102=\"\",\"\",'Asset List'!R102)","v":""}]
[{"$f":"'Asset List'!B103","v":"Snohomish County PUD"},{"$f":"IF('Asset List'!E103=\"\",\"\",'Asset List'!E103)","v":"27. Halls Lake - Brightwater 115 kV"},{"$f":"IF('Asset List'!F103=\"\",\"\",'Asset List'!F103)","v":"Halls Lake - Brightwater 115kV"},{"$f":"IF('Asset List'!G103=\"\",\"\",'Asset List'!G103)","v":""},{"$f":"IF('Asset List'!I103=\"\",\"\",'Asset List'!I103)","v":""},{"$f":"IF('Asset List'!K103=\"\",\"\",'Asset List'!K103)","v":"?"},{"$f":"IF('Asset List'!R103=\"\",\"\",'Asset List'!R103)","v":""}]
[{"$f":"'Asset List'!B104","v":"Snohomish County PUD"},{"$f":"IF('Asset List'!E104=\"\",\"\",'Asset List'!E104)","v":"28. Snohomish (SNOH S1) - Jackson 115 kV"},{"$f":"IF('Asset List'!F104=\"\",\"\",'Asset List'!F104)","v":"Snohomish-Jackson 115kV"},{"$f":"IF('Asset List'!G104=\"\",\"\",'Asset List'!G104)","v":""},{"$f":"IF('Asset List'!I104=\"\",\"\",'Asset List'!I104)","v":""},{"$f":"IF('Asset List'!K104=\"\",\"\",'Asset List'!K104)","v":"?"},{"$f":"IF('Asset List'!R104=\"\",\"\",'Asset List'!R104)","v":""}]
[{"$f":"'Asset List'!B105","v":"Snohomish County PUD"},{"$f":"IF('Asset List'!E105=\"\",\"\",'Asset List'!E105)","v":"29. Snoking (SNOk S1) - North Creek 115 kV"},{"$f":"IF('Asset List'!F105=\"\",\"\",'Asset List'!F105)","v":"Snoking (SNOk S1) - North Creek 115kV"},{"$f":"IF('Asset List'!G105=\"\",\"\",'Asset List'!G105)","v":""},{"$f":"IF('Asset List'!I105=\"\",\"\",'Asset List'!I105)","v":""},{"$f":"IF('Asset List'!K105=\"\",\"\",'Asset List'!K105)","v":"?"},{"$f":"IF('Asset List'!R105=\"\",\"\",'Asset List'!R105)","v":""}]
[{"$f":"'Asset List'!B106","v":"Snohomish County PUD"},{"$f":"IF('Asset List'!E106=\"\",\"\",'Asset List'!E106)","v":"30. Snoking (SNOk S3) - Brightwater 115 kV"},{"$f":"IF('Asset List'!F106=\"\",\"\",'Asset List'!F106)","v":"Snoking (SNOk S3) - Brightwater 115kV"},{"$f":"IF('Asset List'!G106=\"\",\"\",'Asset List'!G106)","v":""},{"$f":"IF('Asset List'!I106=\"\",\"\",'Asset List'!I106)","v":""},{"$f":"IF('Asset List'!K106=\"\",\"\",'Asset List'!K106)","v":"?"},{"$f":"IF('Asset List'!R106=\"\",\"\",'Asset List'!R106)","v":"No change to daily operations, except what would be required for BPA compliance "}]
[{"$f":"'Asset List'!B107","v":"Springfield Utility Board "},{"$f":"IF('Asset List'!E107=\"\",\"\",'Asset List'!E107)","v":"1.   Springfield Interconnected Network 115 kV"},{"$f":"IF('Asset List'!F107=\"\",\"\",'Asset List'!F107)","v":"Alvey - Springfield No. 1 115kV  "},{"$f":"IF('Asset List'!G107=\"\",\"\",'Asset List'!G107)","v":"Springfield 115kV"},{"$f":"IF('Asset List'!I107=\"\",\"\",'Asset List'!I107)","v":""},{"$f":"IF('Asset List'!K107=\"\",\"\",'Asset List'!K107)","v":"2S612,\nCS-2S616*"},{"$f":"IF('Asset List'!R107=\"\",\"\",'Asset List'!R107)","v":""}]
[{"$f":"'Asset List'!B108","v":"Springfield Utility Board "},{"$f":"IF('Asset List'!E108=\"\",\"\",'Asset List'!E108)","v":"1.   Springfield Interconnected Network 115 kV"},{"$f":"IF('Asset List'!F108=\"\",\"\",'Asset List'!F108)","v":"Springfield - Tenth Street 115kV "},{"$f":"IF('Asset List'!G108=\"\",\"\",'Asset List'!G108)","v":"Tenth Street 115kV"},{"$f":"IF('Asset List'!I108=\"\",\"\",'Asset List'!I108)","v":""},{"$f":"IF('Asset List'!K108=\"\",\"\",'Asset List'!K108)","v":"2S601,\n2S618"},{"$f":"IF('Asset List'!R108=\"\",\"\",'Asset List'!R108)","v":""}]
[{"$f":"'Asset List'!B109","v":"Springfield Utility Board "},{"$f":"IF('Asset List'!E109=\"\",\"\",'Asset List'!E109)","v":"1.   Springfield Interconnected Network 115 kV"},{"$f":"IF('Asset List'!F109=\"\",\"\",'Asset List'!F109)","v":"Alvey - Tenth Street 115kV "},{"$f":"IF('Asset List'!G109=\"\",\"\",'Asset List'!G109)","v":""},{"$f":"IF('Asset List'!I109=\"\",\"\",'Asset List'!I109)","v":""},{"$f":"IF('Asset List'!K109=\"\",\"\",'Asset List'!K109)","v":"2S197"},{"$f":"IF('Asset List'!R109=\"\",\"\",'Asset List'!R109)","v":""}]
[{"$f":"'Asset List'!B110","v":"Springfield Utility Board "},{"$f":"IF('Asset List'!E110=\"\",\"\",'Asset List'!E110)","v":"1.   Springfield Interconnected Network 115 kV"},{"$f":"IF('Asset List'!F110=\"\",\"\",'Asset List'!F110)","v":"Tenth Street - Laura 115kV "},{"$f":"IF('Asset List'!G110=\"\",\"\",'Asset List'!G110)","v":"Laura Street 115kV"},{"$f":"IF('Asset List'!I110=\"\",\"\",'Asset List'!I110)","v":""},{"$f":"IF('Asset List'!K110=\"\",\"\",'Asset List'!K110)","v":"2S198,\n2S691"},{"$f":"IF('Asset List'!R110=\"\",\"\",'Asset List'!R110)","v":""}]
[{"$f":"'Asset List'!B111","v":"Springfield Utility Board "},{"$f":"IF('Asset List'!E111=\"\",\"\",'Asset List'!E111)","v":"1.   Springfield Interconnected Network 115 kV"},{"$f":"IF('Asset List'!F111=\"\",\"\",'Asset List'!F111)","v":"Laura - Gateway Tap 115kV "},{"$f":"IF('Asset List'!G111=\"\",\"\",'Asset List'!G111)","v":""},{"$f":"IF('Asset List'!I111=\"\",\"\",'Asset List'!I111)","v":""},{"$f":"IF('Asset List'!K111=\"\",\"\",'Asset List'!K111)","v":"2S159"},{"$f":"IF('Asset List'!R111=\"\",\"\",'Asset List'!R111)","v":""}]
[{"$f":"'Asset List'!B112","v":"Springfield Utility Board "},{"$f":"IF('Asset List'!E112=\"\",\"\",'Asset List'!E112)","v":"1.   Springfield Interconnected Network 115 kV"},{"$f":"IF('Asset List'!F112=\"\",\"\",'Asset List'!F112)","v":"McKenzie - Gateway Tap 115kV Tap "},{"$f":"IF('Asset List'!G112=\"\",\"\",'Asset List'!G112)","v":""},{"$f":"IF('Asset List'!I112=\"\",\"\",'Asset List'!I112)","v":""},{"$f":"IF('Asset List'!K112=\"\",\"\",'Asset List'!K112)","v":""},{"$f":"IF('Asset List'!R112=\"\",\"\",'Asset List'!R112)","v":""}]
[{"$f":"'Asset List'!B113","v":"Springfield Utility Board "},{"$f":"IF('Asset List'!E113=\"\",\"\",'Asset List'!E113)","v":"1.   Springfield Interconnected Network 115 kV"},{"$f":"IF('Asset List'!F113=\"\",\"\",'Asset List'!F113)","v":"Gateway - Gateway Tap 115kV "},{"$f":"IF('Asset List'!G113=\"\",\"\",'Asset List'!G113)","v":"Gateway 115kV"},{"$f":"IF('Asset List'!I113=\"\",\"\",'Asset List'!I113)","v":""},{"$f":"IF('Asset List'!K113=\"\",\"\",'Asset List'!K113)","v":"2S276"},{"$f":"IF('Asset List'!R113=\"\",\"\",'Asset List'!R113)","v":""}]
[{"$f":"'Asset List'!B114","v":"Springfield Utility Board "},{"$f":"IF('Asset List'!E114=\"\",\"\",'Asset List'!E114)","v":"1.   Springfield Interconnected Network 115 kV"},{"$f":"IF('Asset List'!F114=\"\",\"\",'Asset List'!F114)","v":"Gateway - Olympic 115kV "},{"$f":"IF('Asset List'!G114=\"\",\"\",'Asset List'!G114)","v":"Olympic 115kV"},{"$f":"IF('Asset List'!I114=\"\",\"\",'Asset List'!I114)","v":""},{"$f":"IF('Asset List'!K114=\"\",\"\",'Asset List'!K114)","v":"2S282,\n2S621"},{"$f":"IF('Asset List'!R114=\"\",\"\",'Asset List'!R114)","v":""}]
[{"$f":"'Asset List'!B115","v":"Springfield Utility Board "},{"$f":"IF('Asset List'!E115=\"\",\"\",'Asset List'!E115)","v":"1.   Springfield Interconnected Network 115 kV"},{"$f":"IF('Asset List'!F115=\"\",\"\",'Asset List'!F115)","v":"Springfield - Olympic 115kV "},{"$f":"IF('Asset List'!G115=\"\",\"\",'Asset List'!G115)","v":""},{"$f":"IF('Asset List'!I115=\"\",\"\",'Asset List'!I115)","v":""},{"$f":"IF('Asset List'!K115=\"\",\"\",'Asset List'!K115)","v":"2S625,\n2S607"},{"$f":"IF('Asset List'!R115=\"\",\"\",'Asset List'!R115)","v":""}]
[{"$f":"'Asset List'!B116","v":"Springfield Utility Board "},{"$f":"IF('Asset List'!E116=\"\",\"\",'Asset List'!E116)","v":"1.   Springfield Interconnected Network 115 kV"},{"$f":"IF('Asset List'!F116=\"\",\"\",'Asset List'!F116)","v":" Jasper - Olympic 115kV "},{"$f":"IF('Asset List'!G116=\"\",\"\",'Asset List'!G116)","v":"Jasper 115kV"},{"$f":"IF('Asset List'!I116=\"\",\"\",'Asset List'!I116)","v":""},{"$f":"IF('Asset List'!K116=\"\",\"\",'Asset List'!K116)","v":"2S632,\n2S104"},{"$f":"IF('Asset List'!R116=\"\",\"\",'Asset List'!R116)","v":""}]
[{"$f":"'Asset List'!B117","v":"Springfield Utility Board "},{"$f":"IF('Asset List'!E117=\"\",\"\",'Asset List'!E117)","v":"1.   Springfield Interconnected Network 115 kV"},{"$f":"IF('Asset List'!F117=\"\",\"\",'Asset List'!F117)","v":"Mt. Vernon - Jasper 115kV "},{"$f":"IF('Asset List'!G117=\"\",\"\",'Asset List'!G117)","v":"Mt. Vernon 115kV"},{"$f":"IF('Asset List'!I117=\"\",\"\",'Asset List'!I117)","v":""},{"$f":"IF('Asset List'!K117=\"\",\"\",'Asset List'!K117)","v":"2S146,\n2S128"},{"$f":"IF('Asset List'!R117=\"\",\"\",'Asset List'!R117)","v":"No change to daily operations, except what would be required for BPA compliance "}]
[{"$f":"'Asset List'!B118","v":"TransAlta Centralia Generation, LLC "},{"$f":"IF('Asset List'!E118=\"\",\"\",'Asset List'!E118)","v":"1.   Paul Substation-Centralia PH  500 kV"},{"$f":"IF('Asset List'!F118=\"\",\"\",'Asset List'!F118)","v":"Paul Substation-Centralia PH No. 1 500kV "},{"$f":"IF('Asset List'!G118=\"\",\"\",'Asset List'!G118)","v":""},{"$f":"IF('Asset List'!I118=\"\",\"\",'Asset List'!I118)","v":""},{"$f":"IF('Asset List'!K118=\"\",\"\",'Asset List'!K118)","v":"4542,\n4544,\nCBS13"},{"$f":"IF('Asset List'!R118=\"\",\"\",'Asset List'!R118)","v":"No change to daily operations, except what would be required for BPA compliance "}]
[{"$f":"'Asset List'!B119","v":"TransAlta Centralia Generation, LLC "},{"$f":"IF('Asset List'!E119=\"\",\"\",'Asset List'!E119)","v":"1.   Paul Substation-Centralia PH  500 kV"},{"$f":"IF('Asset List'!F119=\"\",\"\",'Asset List'!F119)","v":"Paul Substation-Centralia PH No. 2 500kV "},{"$f":"IF('Asset List'!G119=\"\",\"\",'Asset List'!G119)","v":""},{"$f":"IF('Asset List'!I119=\"\",\"\",'Asset List'!I119)","v":""},{"$f":"IF('Asset List'!K119=\"\",\"\",'Asset List'!K119)","v":4536},{"$f":"IF('Asset List'!R119=\"\",\"\",'Asset List'!R119)","v":""}]
[{"$f":"'Asset List'!B120","v":"US DOE Richland "},{"$f":"IF('Asset List'!E120=\"\",\"\",'Asset List'!E120)","v":"1.    Midway – HEW (A7) – Ashe # 1 "},{"$f":"IF('Asset List'!F120=\"\",\"\",'Asset List'!F120)","v":"Midway – HEW (A7) – Ashe # 1 230kV "},{"$f":"IF('Asset List'!G120=\"\",\"\",'Asset List'!G120)","v":"A9 230kV,\nA7 230kV"},{"$f":"IF('Asset List'!I120=\"\",\"\",'Asset List'!I120)","v":""},{"$f":"IF('Asset List'!K120=\"\",\"\",'Asset List'!K120)","v":""},{"$f":"IF('Asset List'!R120=\"\",\"\",'Asset List'!R120)","v":"Will no longer be a TO once Midway-Ashe is complete"}]
[{"$f":"'Asset List'!B121","v":"US DOE Richland "},{"$f":"IF('Asset List'!E121=\"\",\"\",'Asset List'!E121)","v":"2.    Midway – HEW (A6 & A8) – Ashe # 1 "},{"$f":"IF('Asset List'!F121=\"\",\"\",'Asset List'!F121)","v":"Midway – HEW (A6 & A8) – Ashe # 1 230kV "},{"$f":"IF('Asset List'!G121=\"\",\"\",'Asset List'!G121)","v":"A8 230kV,\nA6 230kV\n"},{"$f":"IF('Asset List'!I121=\"\",\"\",'Asset List'!I121)","v":""},{"$f":"IF('Asset List'!K121=\"\",\"\",'Asset List'!K121)","v":"A-386,\nA-384,\nA-362,\nA-366,\nA-364"},{"$f":"IF('Asset List'!R121=\"\",\"\",'Asset List'!R121)","v":""}]
[{"$f":"'Asset List'!B122","v":"US Naval Base Kitsap "},{"$f":"IF('Asset List'!E122=\"\",\"\",'Asset List'!E122)","v":"1.    Sub X – Sub H 115 kV"},{"$f":"IF('Asset List'!F122=\"\",\"\",'Asset List'!F122)","v":""},{"$f":"IF('Asset List'!G122=\"\",\"\",'Asset List'!G122)","v":"Station H"},{"$f":"IF('Asset List'!I122=\"\",\"\",'Asset List'!I122)","v":""},{"$f":"IF('Asset List'!K122=\"\",\"\",'Asset List'!K122)","v":""},{"$f":"IF('Asset List'!R122=\"\",\"\",'Asset List'!R122)","v":"No change to daily operations, except what would be required for BPA compliance "}]
[{"$f":"'Asset List'!B123","v":"US Naval Base Kitsap "},{"$f":"IF('Asset List'!E123=\"\",\"\",'Asset List'!E123)","v":"2.    Sub H - Sub FG 115 kV"},{"$f":"IF('Asset List'!F123=\"\",\"\",'Asset List'!F123)","v":"Station H-Station FG 115kV"},{"$f":"IF('Asset List'!G123=\"\",\"\",'Asset List'!G123)","v":"Station GF"},{"$f":"IF('Asset List'!I123=\"\",\"\",'Asset List'!I123)","v":""},{"$f":"IF('Asset List'!K123=\"\",\"\",'Asset List'!K123)","v":""},{"$f":"IF('Asset List'!R123=\"\",\"\",'Asset List'!R123)","v":""}]
[{"$f":"'Asset List'!B124","v":"US Naval Base Kitsap "},{"$f":"IF('Asset List'!E124=\"\",\"\",'Asset List'!E124)","v":"3.    Kitsap - Bangor - Foss Corner 115 kV"},{"$f":"IF('Asset List'!F124=\"\",\"\",'Asset List'!F124)","v":""},{"$f":"IF('Asset List'!G124=\"\",\"\",'Asset List'!G124)","v":"Bangor (Substation 1)"},{"$f":"IF('Asset List'!I124=\"\",\"\",'Asset List'!I124)","v":""},{"$f":"IF('Asset List'!K124=\"\",\"\",'Asset List'!K124)","v":""},{"$f":"IF('Asset List'!R124=\"\",\"\",'Asset List'!R124)","v":""}]